Workbook

Sheet Учебный план
A1: УТВЕРЖДАЮ Директор МБУ ДО «ДТДиМ им. И.Х.Садыкова»НМР РТ _______________ Р.Н.Салихзянов «_____»____________2025г.
A2: УЧЕБНЫЙ ПЛАН МУНИЦИПАЛЬНОГО БЮДЖЕТНОГО УЧРЕЖДЕНИЯ ДОПОЛНИТЕЛЬНОГО ОБРАЗОВАНИЯ «ДВОРЕЦ ТВОРЧЕСТВА ДЕТЕЙ И МОЛОДЕЖИ имени И.Х.САДЫКОВА» НИЖНЕКАМСКОГО МУНИЦИПАЛЬНОГО РАЙОНА РЕСПУБЛИКИ ТАТАРСТАН НА 2025–2026 УЧЕБНЫЙ ГОД
A3: № п/п | B3: Направленность. Вид, наименование ДООП, возраст учащихся,срок реализации | C3: Комплектование | S3: Из них занимаются в ДТДиМ
C4: Количество групп, учащихся, часов в неделю по программе по годам обучения, форма аттестации
C5: 1 года обучения. Количество | G5: 2 года обучения. Количество | K5: 3 и более год обучения. Количество | O5: Всего. Количество
C7: гр. | D7: уч-ся | E7: час. | F7: форма атт. | G7: гр. | H7: уч-ся | I7: час. | J7: форма атт. | K7: гр. | L7: уч-ся | M7: час. | N7: форма атт. | O7: гр. | P7: уч-ся | Q7: час. | R7: конц. час | S7: гр. | T7: учащиеся
B9: Техническая направленность
A10: 1 | B10: Авторская, «Начальное техническое моделирование с элементами компьютерной графики», 7-10 лет , 4 года | C10: 2 | D10: 30 | E10: 8 | F10: Практическая работа | G10: 1 | H10: 12 | I10: 6 | J10: Практическая работа | K10: 2 | L10: 20 | M10: 12 | N10: Практическая работа | O10: 5 | P10: 62 | Q10: 26 | S10: 2 | T10: 20
A11: 2 | B11: Модифицированная, «Начальное техническое моделирование», 7-12 лет, 4 года | C11: 3 | D11: 45 | E11: 12 | F11: Практическое задание | G11: 2 | H11: 24 | I11: 12 | J11: Практическое задание | O11: 5 | P11: 69 | Q11: 24
A12: 3 | B12: Модифицированная, «Основы робототехники», 10-16 лет, 2 года | C12: 1 | D12: 15 | E12: 4 | F12: Практическая работа | O12: 1 | P12: 15 | Q12: 4
A13: 4 | B13: Модифицированная, "Мастерская идей", 7-11 лет, 4 года | G13: 1 | H13: 12 | I13: 6 | J13: Практическая работа | K13: 1 | L13: 10 | M13: 6 | N13: Практическая работа | O13: 2 | P13: 22 | Q13: 12 | S13: 1 | T13: 10
A14: 5 | B14: Модифицированная, "Увлекательное моделирование", 7-11 лет, 4 года | K14: 1 | L14: 10 | M14: 6 | N14: Практическая работа | O14: 1 | P14: 10 | Q14: 6
A15: 6 | B15: Модифицированная, "Анимационная студия "Детство", 7-12 лет, 4 года | C15: 1 | D15: 15 | E15: 4 | F15: Практическая работа | K15: 3 | L15: 30 | M15: 18 | N15: Защита проекта | O15: 4 | P15: 45 | Q15: 22
A16: 7 | B16: Модифицированная, "Самоделкины", 7-12 лет,4 года | K16: 1 | L16: 10 | M16: 6 | N16: Выставка | O16: 1 | P16: 10 | Q16: 6
A17: 8 | B17: Модифицированная, "3D - моделирование", 10- 16 лет, 1 год | C17: 3 | D17: 45 | E17: 12 | F17: Практическая работа | O17: 3 | P17: 45 | Q17: 12
A18: 9 | B18: Модифицированная, "Мастеринка", 7-10 лет, 2 года | G18: 1 | H18: 12 | I18: 6 | J18: Практическая работа | O18: 1 | P18: 12 | Q18: 6
A19: 10 | B19: Модифицированная, "Электроник, 7-9 лет, 2 года | G19: 1 | H19: 12 | I19: 6 | J19: Практическая работа | O19: 1 | P19: 12 | Q19: 6
A20: 11 | B20: Модифицированная, "Умелые ручки", 7-12 лет, 4 года | K20: 1 | L20: 10 | M20: 6 | N20: Практическая работа | O20: 1 | P20: 10 | Q20: 6
B21: ИТОГО: | C21: =SUM(C10:C20) -> 10 | D21: =SUM(D10:D20) -> 150 | E21: =SUM(E10:E20) -> 40 | G21: =SUM(G10:G20) -> 6 | H21: =SUM(H10:H20) -> 72 | I21: =SUM(I10:I20) -> 36 | K21: =SUM(K10:K20) -> 9 | L21: =SUM(L10:L20) -> 90 | M21: =SUM(M10:M20) -> 54 | O21: =SUM(O10:O20) -> 25 | P21: =SUM(P10:P20) -> 312 | Q21: =SUM(Q10:Q20) -> 130 | S21: =SUM(S10:S20) -> 3 | T21: 30
B22: Художественная направленность
A23: 12 | B23: Авторская, «Курай», 7-13 лет, 4 года | C23: 2 | D23: 30 | E23: 8 | F23: Творческая работа | G23: 1 | H23: 12 | I23: 6 | J23: Творческая работа | K23: 4 | L23: 40 | M23: 24 | N23: Творческая работа | O23: 7 | P23: 82 | Q23: 38
A24: 13 | B24: Модифицированная, «Тел күрке - сүз», 11-15 лет, 3 года | G24: 2 | H24: 24 | I24: 12 | J24: Творческая работа | O24: 2 | P24: 24 | Q24: 12
A25: 14 | B25: Модифицированная, «Күңелле сәхнә», 11-15 лет, 3 года | C25: 4 | D25: 60 | E25: 16 | F25: Творческая работа | O25: 4 | P25: 60 | Q25: 16
A26: 15 | B26: Модифицированная, «Сәнгатьле сүз», 10-14 лет, 1 год | C26: 1 | D26: 15 | E26: 4 | F26: Творческая работа | O26: 1 | P26: 15 | Q26: 4
A27: 16 | B27: Модифицированная, «Таван театр», 9-11 лет, 1 год | C27: 1 | D27: 15 | E27: 4 | F27: Творческая работа | O27: 1 | P27: 15 | Q27: 4
A28: 17 | B28: Модифицированная «Народно-сценические танцы», 7-13 лет, 5 лет | C28: 2 | D28: 30 | E28: 8 | F28: Творческая работа | G28: 1 | H28: 12 | I28: 6 | J28: Творческая работа | K28: 1 | L28: 10 | M28: 6 | N28: Творческая работа | O28: 4 | P28: 52 | Q28: 20 | R28: 4
A29: 18 | B29: Адаптированная, «Лепка», 7-14 лет, 4 года | K29: 1 | L29: 10 | M29: 6 | N29: Практическая работа | O29: 1 | P29: 10 | Q29: 6 | S29: 1 | T29: 10
A30: 19 | B30: Модифицированная, «Художники», 7-11 лет 4 года | C30: 1 | D30: 15 | E30: 4 | F30: Отчетная выставка | G30: 4 | H30: 48 | I30: 24 | J30: отчетная выставка | O30: 5 | P30: 63 | Q30: 28
A31: 20 | B31: Модифицированная, «Веселая кисточка», 7-12 лет, 3 года | C31: 2 | D31: 30 | E31: 8 | F31: выставка | K31: 3 | L31: 30 | M31: 18 | N31: Итоговая выставка | O31: 5 | P31: 60 | Q31: 26
A32: 21 | B32: Модифицированная, «ИЗО», 8-14 лет, 2 года | G32: 1 | H32: 12 | I32: 6 | J32: Итоговая выставка | K32: 2 | L32: 20 | M32: 12 | O32: 3 | P32: 32 | Q32: 18 | S32: 3 | T32: 32
A33: 22 | B33: Авторская, «Основы дизайна», 7-13 лет, 4 года | G33: 2 | H33: 24 | I33: 12 | J33: Итоговая выставка | O33: 2 | P33: 24 | Q33: 12 | S33: 2 | T33: 24
A34: 23 | B34: Авторская, «Бисероплетение», 7-15 лет, 3 года | G34: 1 | H34: 12 | I34: 6 | J34: Выставка творческих работ | K34: 1 | L34: 10 | M34: 6 | N34: Тестирование | O34: 2 | P34: 22 | Q34: 12 | S34: 2 | T34: 22
A35: 24 | B35: Авторская, «Цветоделие», 7-15 лет, 3 года | C35: 2 | D35: 30 | E35: 8 | F35: Итоговая выставка | O35: 2 | P35: 30 | Q35: 8
A36: 25 | B36: Модифицированная, «Юный дизайнер», 7-14 лет,4 года | C36: 2 | D36: 30 | E36: 8 | F36: мини-выставка | K36: 2 | L36: 20 | M36: 12 | N36: Индивидуальная творческая работа | O36: 4 | P36: 50 | Q36: 20
A37: 26 | B37: Авторская, «Волшебная кисточка», 7-15 лет, 3 года | G37: 1 | H37: 12 | I37: 6 | J37: мини-выставка | O37: 1 | P37: 12 | Q37: 6
A38: 27 | B38: Модифицированная, «Калейдоскоп фантазий», 10-15 лет, 3 года | K38: 1 | L38: 10 | M38: 6 | N38: итоговая творческая работа, выставка | O38: 1 | P38: 10 | Q38: 6
A39: 28 | B39: Модифицированная, «Кудесники», 7-10 лет, 2 года | C39: 1 | D39: 15 | E39: 4 | F39: Итоговая выставка | O39: 1 | P39: 15 | Q39: 4
A40: 29 | B40: Модифицированная, «Волшебная мастерская», 7-11 лет, 4 года | K40: 1 | L40: 10 | M40: 6 | N40: Итоговая выставка | O40: 1 | P40: 10 | Q40: 6
A41: 30 | B41: Модифицированная, «Art-студия», 7-14 лет,4 года | C41: 1 | D41: 15 | E41: 4 | F41: тестирование | O41: 1 | P41: 15 | Q41: 4
A42: 31 | B42: Модифицированная, «Разноцветная палитра», 7-11 лет,1год | C42: 1 | D42: 15 | E42: 4 | F42: тестирование | O42: 1 | P42: 15 | Q42: 4
A43: 32 | B43: Модифицированная, «Юные да Винчи», 7-11 лет, 1 год | C43: 1 | D43: 15 | E43: 4 | F43: Тестирование выставка | O43: 1 | P43: 15 | Q43: 4
A44: 33 | B44: Модифицированная, "Вокал.«Радуга», 7-10 лет, 2 года | C44: 1 | D44: 15 | E44: 4 | F44: Участие в отчетном концерте | O44: 1 | P44: 15 | Q44: 4
A45: 34 | B45: Модифицированная «Хореография.Грация», 5-14 лет, 4 года | C45: 2 | D45: 30 | E45: 8 | F45: Контрольное выступление | K45: 2 | L45: 20 | M45: 12 | N45: Концертная деятельность | O45: 4 | P45: 50 | Q45: 20 | R45: 20 | S45: 2 | T45: 20
A46: 35 | B46: Модифицированная, "Веселая сцена" 10-13 лет, 3 года | C46: 1 | D46: 15 | E46: 4 | F46: итоговый показ | O46: 1 | P46: 15 | Q46: 4
A47: 36 | B47: Модифицированная, «Литературно драматическое», 7-15 лет, 4 года | C47: 1 | D47: 15 | E47: 4 | F47: Конторльные задания | K47: 1 | L47: 10 | M47: 6 | N47: Тестирование | O47: 2 | P47: 25 | Q47: 10 | S47: 2 | T47: 25
A48: 37 | B48: Модифицированная, «РФА «Забавята», 7-11 лет, 3 года | C48: 2 | D48: 30 | E48: 8 | F48: Прослушивание, концертное выступление | O48: 2 | P48: 30 | Q48: 8 | R48: 8
A49: 38 | B49: Модифицированная, «РФА», 7-11 лет, 4 года | G49: 1 | H49: 12 | I49: 6 | J49: Самостоятелҗная работа, тестирование | O49: 1 | P49: 12 | Q49: 6 | R49: 6
A50: 39 | B50: Модифицированная «Вокал» 7-16 лет, 2 года | C50: 5 | D50: 75 | E50: 20 | F50: Концертное выступление | O50: 5 | P50: 75 | Q50: 20 | R50: 4 | S50: 3 | T50: 45
A51: 40 | B51: Модифицированная, «Вокал « Веселые нотки», 7-16 лет, 2 года | C51: 1 | D51: 15 | E51: 4 | F51: Отчетный концертный номер | O51: 1 | P51: 15 | Q51: 4
A52: 41 | B52: Модифицированная, «Вокал. "Каприз», 7-16 лет, 3 года | K52: 1 | L52: 10 | M52: 6 | N52: Отчетный концертный номер | O52: 1 | P52: 10 | Q52: 6
A53: 42 | B53: Модифицированная «Хореография. Брависсимо», 7-16 лет, 7 лет | C53: 2 | D53: 30 | E53: 8 | F53: Открытое занятие в форме показательных выступлений | O53: 2 | P53: 30 | Q53: 8 | S53: 2 | T53: 30
A54: 43 | B54: Модифицированная «Ascension», 14-18 лет, 3 года | C54: 2 | D54: 30 | E54: 8 | F54: тестирование | O54: 2 | P54: 30 | Q54: 8 | S54: 2 | T54: 30
A55: 44 | B55: Модифицированная, «Вокал. Карамельки», 7-15лет, 4 года | G55: 1 | H55: 12 | I55: 6 | J55: участие в отчетном концерте | K55: 2 | L55: 20 | M55: 12 | N55: участие в отчетном концерте | O55: 3 | P55: 32 | Q55: 18 | R55: 18 | S55: 3 | T55: 32
A56: 45 | B56: Модифицированная, "Художественное слово" 8-13 лет ,2 года | C56: 1 | D56: 15 | E56: 4 | F56: Педагогическое наблюдение , показ | O56: 1 | P56: 15 | Q56: 4
A57: 46 | B57: Модифицированная «Театральная студия "Браво», 10-14 лет, 1 год | C57: 2 | D57: 30 | E57: 8 | F57: Практическая работа | O57: 2 | P57: 30 | Q57: 8
A58: 47 | B58: Модифицированная «Театральная студия "Тарарабумбия», 10-15 лет, 1 год | C58: 1 | D58: 15 | E58: 4 | F58: творческий показ | O58: 1 | P58: 15 | Q58: 4
A59: 48 | B59: Модифицированная «Театральная студия "Настроение», 7-12 лет, 4 года | K59: 1 | L59: 10 | M59: 6 | N59: Итоговый показ | O59: 1 | P59: 10 | Q59: 6
B60: ИТОГО: | C60: =SUM(C23:C59) -> 42 | D60: =SUM(D23:D59) -> 630 | E60: =SUM(E23:E59) -> 168 | G60: =SUM(G23:G59) -> 15 | H60: =SUM(H23:H59) -> 180 | I60: =SUM(I23:I59) -> 90 | K60: =SUM(K23:K59) -> 23 | L60: =SUM(L23:L59) -> 230 | M60: =SUM(M23:M59) -> 138 | O60: =SUM(O23:O59) -> 80 | P60: 1040 | Q60: 396 | R60: =SUM(R23:R59) -> 60 | S60: =SUM(S29:S59) -> 22 | T60: =SUM(T29:T59) -> 270
B61: Туристско-краеведческая направленность
A62: 49 | B62: Авторская, «Туган як табигатен өйрәнү», 7-12 лет, 3 года | C62: 1 | D62: 15 | E62: 4 | F62: Тестирование | G62: 2 | H62: 24 | I62: 12 | J62: творческая работа | K62: 2 | L62: 20 | M62: 12 | N62: Итоговая выстовка | O62: 5 | P62: 59 | Q62: 28
A63: 50 | B63: Авторская, «Краеведение», 7-10 лет, 3 года | G63: 1 | H63: 12 | I63: 6 | J63: Итоговая выстовка | O63: 1 | P63: 12 | Q63: 6
A64: 51 | B64: Модифицированная «Туган як тарихын һәм мәдәниятен өйрәнү» 7-11 лет, 4 года | C64: 2 | D64: 30 | E64: 8 | F64: Творческая работа | O64: 2 | P64: 30 | Q64: 8
A65: 52 | B65: Модифицированная, «Изучение истории и культуры русского народа», 10-13 лет, 3 года | K65: 1 | L65: 10 | M65: 6 | N65: Тестирование | O65: 1 | P65: 10 | Q65: 6
A66: 53 | B66: Модифицированная «Юный стрелок» 11-16 лет, 2 года | C66: 2 | D66: 30 | E66: 8 | F66: тестирование | O66: 2 | P66: 30 | Q66: 8
A67: 54 | B67: Модифицированная «Орнамент в народном творчестве», 7-11 лет,2 года | C67: 3 | D67: 45 | E67: 12 | F67: Отчетная выставка | G67: 2 | H67: 24 | I67: 12 | J67: Контрольная работа | O67: 5 | P67: 69 | Q67: 24
B68: ИТОГО: | C68: =SUM(C62:C67) -> 8 | D68: =SUM(D62:D67) -> 120 | E68: =SUM(E62:E67) -> 32 | G68: =SUM(G62:G67) -> 5 | H68: =SUM(H62:H67) -> 60 | I68: =SUM(I62:I67) -> 30 | K68: =SUM(K62:K67) -> 3 | L68: =SUM(L62:L67) -> 30 | M68: =SUM(M62:M67) -> 18 | O68: =SUM(O62:O67) -> 16 | P68: =SUM(P62:P67) -> 210 | Q68: =SUM(Q62:Q67) -> 80
B69: Естественнонаучная направленность
A70: 55 | B70: Модифицированная, «Географическое творчество», 10-16 лет, 1 год | C70: 2 | D70: 30 | E70: 8 | F70: Творческое задание | O70: 2 | P70: 30 | Q70: 8
A71: 56 | B71: Модифицированная, «Занимательная география», 10-16 лет, 1 год | C71: 1 | D71: 15 | E71: 4 | F71: Тестирование | O71: 1 | P71: 15 | Q71: 4
A72: 57 | B72: Модифицированная, «Школа Кота да Винчи», 11-13 лет, 2 года | G72: 1 | H72: 12 | I72: 6 | J72: защита реферата | O72: 1 | P72: 12 | Q72: 6
A73: 58 | B73: Модифицированная, «Уйла, эзлә,тап», 12-16 лет, 1 год | C73: 1 | D73: 15 | E73: 4 | F73: защита реферата | O73: 1 | P73: 15 | Q73: 4
A74: 59 | B74: Модифицированная, «Яшь эзләнүчеләр», 12-16 лет, 3 года | K74: 1 | L74: 10 | M74: 6 | N74: Защита проекта | O74: 1 | P74: 10 | Q74: 6
A75: 60 | B75: Модифицированная, «Юные экологи», 14-15 лет, 1 год | C75: 1 | D75: 15 | E75: 4 | F75: Защита проекта | O75: 1 | P75: 15 | Q75: 4
A76: 61 | B76: Авторская, «Веселый английский», 7-10 лет, 3 года | G76: 2 | H76: 24 | I76: 12 | J76: Контрольная работа | K76: 1 | L76: 10 | M76: 6 | N76: Конкурс | O76: 3 | P76: 34 | Q76: 18
B77: ИТОГО: | C77: =SUM(C70:C76) -> 5 | D77: =SUM(D70:D76) -> 75 | E77: =SUM(E70:E76) -> 20 | G77: =SUM(G70:G76) -> 3 | H77: =SUM(H70:H76) -> 36 | I77: =SUM(I70:I76) -> 18 | K77: =SUM(K74:K76) -> 2 | L77: =SUM(L74:L76) -> 20 | M77: =SUM(M74:M76) -> 12 | O77: =SUM(O70:O76) -> 10 | P77: =SUM(P70:P76) -> 131 | Q77: =SUM(Q70:Q76) -> 50
B78: Социально-гуманитарная направленность
A79: 62 | B79: Модифицированная, «Инициатива», 14-17 лет, 1 год | C79: 1 | D79: 15 | E79: 4 | F79: Защита проекта (конкурс) | O79: 1 | P79: 15 | Q79: 4 | S79: 1 | T79: 15
A80: 63 | B80: Авторская, «Школа инициативы», 14-17 лет, 3 года | C80: 1 | D80: 15 | E80: 4 | F80: Защита проекта (конкурс) | O80: 1 | P80: 15 | Q80: 4 | S80: 1 | T80: 15
A81: 64 | B81: Адаптированная, «Шаг вперед», 10-15 лет, 1 год | C81: 1 | D81: 15 | E81: 4 | F81: Защита творческого проекта | O81: 1 | P81: 15 | Q81: 4 | S81: 1 | T81: 15
A82: 65 | B82: Авторская, «Учеба профилактических волонтеров», 12-16 лет, 3 года | C82: 1 | D82: 15 | E82: 4 | F82: Зачет | K82: 1 | L82: 10 | M82: 6 | N82: Защита проекта | O82: 2 | P82: 25 | Q82: 10 | S82: 2 | T82: 25
A83: 66 | B83: Модифицированная, "Прочитай-ка", 7-11 лет, 1 год | C83: 1 | D83: 15 | E83: 4 | F83: защита творческого проекта | O83: 1 | P83: 15 | Q83: 4
A84: 67 | B84: Модифицированная, "Палитра эмоций" 12-16 лет, 1 год | C84: 1 | D84: 15 | E84: 4 | F84: Творческое задание | O84: 1 | P84: 15 | Q84: 4
A85: 68 | B85: Модифицированная, «Мирас» 15-17 лет, 2 года | G85: 2 | H85: 24 | I85: 12 | J85: защита проекта | O85: 2 | P85: 24 | Q85: 12
B86: ИТОГО: | C86: =SUM(C79:C85) -> 6 | D86: =SUM(D79:D85) -> 90 | E86: =SUM(E79:E85) -> 24 | G86: =SUM(G79:G85) -> 2 | H86: =SUM(H79:H85) -> 24 | I86: =SUM(I79:I85) -> 12 | K86: =SUM(K79:K85) -> 1 | L86: =SUM(L79:L85) -> 10 | M86: =SUM(M79:M85) -> 6 | O86: =SUM(O79:O85) -> 9 | P86: =SUM(P79:P85) -> 124 | Q86: =SUM(Q79:Q85) -> 42 | S86: =SUM(S79:S85) -> 5 | T86: =SUM(T79:T85) -> 70
B87: Физкультурно-спортивная направленность
A88: 69 | B88: Авторская, «Спортивные бальные танцы», 7-17 лет, 6 лет | C88: 1 | D88: 15 | E88: 4 | F88: Учебно-тренировочные соревнования | K88: 3 | L88: 30 | M88: 18 | N88: Соревнования по спортивно - бальным танцам | O88: 4 | P88: 45 | Q88: 22 | R88: 12 | S88: 4 | T88: 45
A89: 70 | B89: Типовая, «Шахматы», 8-14 лет, 3 года | C89: 6 | D89: 90 | E89: 24 | F89: Тестирование | G89: 6 | H89: 72 | I89: 36 | J89: Тестирование | K89: 4 | L89: 40 | M89: 24 | N89: Тестирование | O89: 15 | P89: 202 | Q89: 84
B90: ИТОГО: | C90: 7 | D90: 105 | E90: 28 | G90: =SUM(G88:G89) -> 6 | H90: =SUM(H88:H89) -> 72 | I90: =SUM(I88:I89) -> 36 | K90: =SUM(K88:K89) -> 7 | L90: =SUM(L88:L89) -> 70 | M90: =SUM(M88:M89) -> 42 | O90: 20 | P90: 247 | Q90: 106 | R90: 12 | S90: 4 | T90: 45
B91: ИТОГО ПО ВСЕМ НАПРАВЛЕННОСТЯМ: | C91: 78 | D91: 1170 | E91: 312 | G91: 37 | H91: 444 | I91: 222 | K91: 45 | L91: 450 | M91: 270 | O91: 160 | P91: 2064 | Q91: 804 | R91: 72 | S91: 34 | T91: 415
B94: Директор МБУ «Центр образования» НМР РТ Р.И.Джалолова
B96: Заместитель главного бухгалтера ЦБ Л.М. Шакирова

Sheet Лист3
A1: УТВЕРЖДАЮ Директор МБУ ДО «Дворец творчества детей и молодежи им. И.Х.Садыкова» _______________ Р.Н.Салихзянов «_____»____________2021 г.
A2: УЧЕБНЫЙ ПЛАН МУНИЦИПАЛЬНОГО БЮДЖЕТНОГО УЧРЕЖДЕНИЯ ДОПОЛНИТЕЛЬНОГО ОБРАЗОВАНИЯ «ДВОРЕЦ ТВОРЧЕСТВА ДЕТЕЙ И МОЛОДЕЖИ имени И.Х.САДЫКОВА» НИЖНЕКАМСКОГО МУНИЦИПАЛЬНОГО РАЙОНА РЕСПУБЛИКИ ТАТАРСТАН НА 2021–2022 УЧЕБНЫЙ ГОД
A3: № п/п | B3: Направленность. Вид, наименование ДООП, возраст учащихся,срок реализации | C3: Комплектование | S3: Из них занимаются в ДТДиМ
C4: Количество групп, учащихся, часов в неделю по программе по годам обучения
C5: 1 года обучения. Количество | G5: 2 года обучения. Количество | K5: 3 и более год обучения. Количество | O5: Всего. Количество
C7: гр. | D7: уч-ся | E7: час. | F7: форма атт. | G7: гр. | H7: уч-ся | I7: час. | J7: форма атт. | K7: гр. | L7: уч-ся | M7: час. | N7: форма атт. | O7: гр. | P7: уч-ся | Q7: час. | R7: конц. час | S7: гр. | T7: уч-ся
B9: Техническая направленность
A10: 1 | B10: Авторская, «Начальное техническое моделирование с элементами компьютерной графики», 7-10 лет , 3 года | C10: 2 | D10: 30 | E10: 8 | F10: практическая работа | G10: 1 | H10: 12 | I10: 6 | J10: практическая работа | K10: 1 | L10: 10 | M10: 6 | N10: практическая работа | O10: 4 | P10: 52 | Q10: 20 | S10: 1 | T10: 22
A11: 2 | B11: Авторская, "Компьютерная графика", 10-16 лет, 3 года | C11: 1 | D11: 15 | E11: 4 | F11: выставка | G11: 1 | H11: 12 | I11: 6 | J11: выставка | K11: 2 | L11: 20 | M11: 12 | N11: выставка | O11: 4 | P11: 47 | Q11: 22 | S11: 4 | T11: 47
A12: 3 | B12: Модифицированная, «Техно-Арт» 7-16 лет, 2 года | C12: 2 | D12: 30 | E12: 8 | F12: тестирование | G12: 1 | H12: 12 | I12: 6 | J12: практическое задание | K12: 2 | L12: 20 | M12: 12 | N12: защита проекта | O12: 5 | P12: 62 | Q12: 26 | S12: 5 | T12: 62
A13: 4 | B13: Модифицированная, «Основы конструирования и IT- технологии», 9-14 лет, 3 года | G13: 1 | H13: 12 | I13: 6 | J13: практическое задание | O13: 1 | P13: 12 | Q13: 6
A14: 5 | B14: Модифицированная, «Основы робототехники», 10-16 лет, 2 года | C14: 1 | D14: 15 | E14: 4 | F14: тестирование | G14: 1 | H14: 12 | I14: 6 | J14: защита проекта | O14: 2 | P14: 27 | Q14: 10
A15: 6 | B15: Модифицированная, "Мастерская идей", 7-11 лет, 1 год | C15: 1 | D15: 15 | E15: 4 | F15: практическое задание | O15: 1 | P15: 15 | Q15: 4
A16: 7 | B16: Модифицированная, «Основы моделирования» 7-11 лет, 4 года | C16: 1 | D16: 15 | E16: 4 | F16: тестирование, выставка | O16: 1 | P16: 15 | Q16: 4
A17: 8 | B17: Модифицированная, "Увлекательное моделирование", 10-11 лет, 1 год | C17: 1 | D17: 15 | E17: 4 | F17: прктическое задание | O17: 1 | P17: 15 | Q17: 4
A18: 9 | B18: Модифицированная, «Паскалята», 10-15 лет, 1 год | C18: 1 | D18: 15 | E18: 4 | F18: тестирование | O18: 1 | P18: 15 | Q18: 4
A19: 10 | B19: Модифицированная, "Самоделкины", 10-11 лет, 1 год | C19: 1 | D19: 15 | E19: 4 | F19: выставка | O19: 1 | P19: 15 | Q19: 4
B20: ИТОГО: | C20: =SUM(C10:C19) -> 11 | D20: =SUM(D10:D19) -> 165 | E20: =SUM(E10:E19) -> 44 | G20: =SUM(G10:G17) -> 5 | H20: =SUM(H10:H17) -> 60 | I20: =SUM(I10:I17) -> 30 | K20: 5 | L20: 50 | M20: 30 | O20: =SUM(O10:O19) -> 21 | P20: =SUM(P10:P19) -> 275 | Q20: =SUM(Q10:Q19) -> 104 | S20: =SUM(S10:S19) -> 10 | T20: =SUM(T10:T19) -> 131
B21: Художественная направленность
A22: 11 | B22: Авторская, «Хореография. «Шома бас»,7-13 лет, 5 лет | C22: 3 | D22: 45 | E22: 12 | F22: творческая работа | G22: 1 | H22: 12 | I22: 6 | J22: творческая работа | K22: 3 | L22: 30 | M22: 18 | N22: отчетный концерт | O22: 7 | P22: 87 | Q22: 36 | R22: 36 | S22: 5 | T22: 57
A23: 12 | B23: Модифицированная, «Литературно-драматический», 10-18 лет, 4 года | K23: 1 | L23: 10 | M23: 6 | N23: итоговая работа | O23: 1 | P23: 10 | Q23: 6
A24: 13 | B24: Авторская, «Курай», 7-13 лет, 4 года | C24: 5 | D24: 75 | E24: 20 | F24: творческая работа | G24: 5 | H24: 60 | I24: 30 | J24: творческая работа | K24: 7 | L24: 70 | M24: 42 | N24: творческая работа | O24: 17 | P24: 205 | Q24: 92
A25: 14 | B25: Модифицированная, «Фольклор кряшен», 9-17 лет, 5 лет | C25: 2 | D25: 30 | E25: 8 | F25: тестирование | O25: 2 | P25: 30 | Q25: 8 | R25: 8
A26: 15 | B26: Модифицированная, «Җидегән чишмә», 8-13 лет, 2 года | G26: 2 | H26: 24 | I26: 12 | J26: творческая работа | O26: 2 | P26: 24 | Q26: 12
A27: 16 | B27: Модифицированная, «Тел күрке - сүз», 11-15 лет, 3 года | C27: 2 | D27: 30 | E27: 8 | F27: тестирование | O27: 2 | P27: 30 | Q27: 8
A28: 17 | B28: Модифицированная, «Нәфис сүз», 8-9 лет, 1 год | C28: 2 | D28: 30 | E28: 8 | F28: творческая работа | O28: 2 | P28: 30 | Q28: 8
A29: 18 | B29: Адаптированная, «Лепка», 7-14 лет, 4 года | K29: 1 | L29: 10 | M29: 6 | N29: отчетная выставка | O29: 1 | P29: 10 | Q29: 6 | S29: 1 | T29: 10
A30: 19 | B30: Модифицированная, «Художники»,7-11 лет, 1 год | C30: 6 | D30: 90 | E30: 24 | F30: отчетная выставка | O30: 6 | P30: 90 | Q30: 24
A31: 20 | B31: Модифицированная, «Веселая кисточка», 7-12 лет, 3 года | G31: 3 | H31: 36 | I31: 18 | J31: самост. работа, тестирование | K31: 1 | L31: 10 | M31: 6 | N31: выставка, опрос, наблюдение | O31: 4 | P31: 46 | Q31: 24
A32: 21 | B32: Модифицированная, «ИЗО», 8-14 лет, 1 год | C32: 1 | D32: 15 | E32: 4 | F32: итоговая выставка | O32: 1 | P32: 15 | Q32: 4 | S32: 1 | T32: 15
A33: 22 | B33: Авторская, «Основы дизайна», 7-13 лет, 4 года | G33: 2 | H33: 24 | I33: 12 | J33: итоговая выставка | K33: 1 | L33: 10 | M33: 6 | N33: итоговая выставка | O33: 3 | P33: 34 | Q33: 18 | S33: 3 | T33: 34
A34: 23 | B34: Авторская, «Бисероплетение» 7-15 лет, 3 года Адаптированная, «Бусинка»,8-18 лет, 2 года | G34: 1 | H34: 12 | I34: 6 | J34: отчетная выставка | O34: 1 | P34: 12 | Q34: 6 | S34: 1 | T34: 12
A35: 24 | B35: Авторская, «Бисероплетение», 7-15 лет, 3 года | C35: 1 | D35: 15 | E35: 4 | F35: выставка творческих работ | O35: 1 | P35: 15 | Q35: 4 | S35: 1 | T35: 15
A36: 25 | B36: Авторская, «Цветоделие», 7-15 лет, 3 года | G36: 2 | H36: 24 | I36: 12 | J36: выставка | K36: 1 | L36: 10 | M36: 6 | N36: выставка | O36: 3 | P36: 34 | Q36: 18
A37: 26 | B37: Модифицированная, «Юный дизайнер», 7-13 лет,4 года | C37: 2 | D37: 30 | E37: 8 | F37: мини-выставка | K37: 2 | L37: 20 | M37: 12 | N37: индивидуальная творческая работа | O37: 4 | P37: 50 | Q37: 20
A38: 27 | B38: Авторская, «Волшебная кисточка», 7-15 лет, 3 года | C38: 1 | D38: 15 | E38: 4 | F38: мини-выставка | O38: 1 | P38: 15 | Q38: 4
A39: 28 | B39: Модифицированная, «Разноцветная палитра», 10-15 лет, 2 года | C39: 1 | D39: 15 | E39: 4 | F39: тест | O39: 1 | P39: 15 | Q39: 4
A40: 29 | B40: Модифицированная, «Калейдоскоп фантазий»,10-15 лет, 3 года | G40: 1 | H40: 12 | I40: 6 | J40: выставка | O40: 1 | P40: 12 | Q40: 6
A41: 30 | B41: Модифицированная, «Art-студия», 7-11 лет, 2 года | C41: 1 | D41: 15 | E41: 4 | G41: 4 | H41: 48 | I41: 24 | J41: тестирование | O41: 5 | P41: 63 | Q41: 28 | S41: 2 | T41: 27
A42: 31 | B42: Модифицированная, «Волшебная мастерская», 8-14 лет, 2 года | G42: 3 | H42: 36 | I42: 18 | J42: тестирование, выставка итоговых работ | O42: 3 | P42: 36 | Q42: 18
A43: 32 | B43: Модифицированная, «Хореография. Брависсимо», 7-16 лет, 7 лет | C43: 1 | D43: 15 | E43: 4 | F43: Открытое занятие | G43: 1 | H43: 12 | I43: 6 | J43: Открытое занятие | K43: 3 | L43: 30 | M43: 18 | N43: Отчётный концерт | O43: 5 | P43: 57 | Q43: 28 | R43: 28 | S43: 5 | T43: 57
A44: 33 | B44: Модифицированная, «Хореография. Микс», 7-15 лет, 4 года | C44: 1 | D44: 15 | E44: 4 | F44: Отчётный концерт | G44: 1 | H44: 12 | I44: 6 | J44: Отчётный концерт | K44: 3 | L44: 30 | M44: 18 | N44: Отчётный концерт | O44: 5 | P44: 57 | Q44: 28 | R44: 26
A45: 34 | B45: Модифицированная «Народно-сценические танцы»,7-13 лет, 3 года | C45: 2 | D45: 30 | E45: 8 | F45: Отчётный концерт | G45: 1 | H45: 12 | I45: 6 | J45: Отчётный концерт | N45: Отчётный концерт | O45: 3 | P45: 42 | Q45: 14
A46: 35 | B46: Модифицированная, «Детство», 8-10 лет, 3 года | F46: Концертное выступление | G46: 2 | H46: 24 | I46: 12 | J46: Концертное выступление | N46: Отчётный концерт | O46: 2 | P46: 24 | Q46: 12 | R46: 12 | S46: 2 | T46: 24
A47: 36 | B47: Авторская, «Спортивные бальные танцы», 7-17 лет, 6 лет | C47: 2 | D47: 30 | E47: 8 | F47: Учебно-тренировочные соревнования | J47: Учебно-тренировочные соревнования | K47: 2 | L47: 20 | M47: 12 | N47: Соревнования по спортивно-бальным танцам | O47: 4 | P47: 50 | Q47: 20 | R47: 20 | S47: 2 | T47: 20
A48: 37 | B48: Авторская, «Вдохновение», 7-15 лет, 3 года | F48: Концертное выступление | J48: Концертное выступление | K48: 1 | L48: 10 | M48: 6 | N48: Отчётный концерт | O48: 1 | P48: 10 | Q48: 6 | R48: 6 | S48: 1 | T48: 10
A49: 38 | B49: Модифицированная, «Литературно драматическое», 7-15 лет, 3 года | F49: Контрольные задания | J49: Тестирование | K49: 1 | L49: 10 | M49: 6 | N49: Итоговый показ | O49: 1 | P49: 10 | Q49: 6 | S49: 1 | T49: 6
A50: 40 | B50: Модифицированная, «РФА «Забавята», 7-11 лет, 3 год | C50: 1 | D50: 15 | E50: 4 | F50: Концертная деятельность | G50: 1 | H50: 12 | I50: 6 | J50: Концертная деятельность | K50: 1 | L50: 10 | M50: 6 | N50: Отчётный концерт | O50: 3 | P50: 37 | Q50: 16
A51: 41 | B51: Модифицированная, «РФА», 7-11 лет, 4 года | F51: Самостоятельная работа, тестирование | G51: 1 | H51: 12 | I51: 6 | J51: Самостоятельная работа, тестирование | N51: Отчётный концерт | O51: 1 | P51: 12 | Q51: 6
A52: 42 | B52: Модифицированная, «Вокал», 7-15 лет, 2 года | C52: 6 | D52: 90 | E52: 24 | F52: Отчётный концерт | J52: Отчётный концерт | O52: 6 | P52: 90 | Q52: 24 | R52: 24 | S52: 6 | T52: 90
A53: 43 | B53: Модифицированная «Хореография», 7-11 лет, 4 года | C53: 1 | D53: 15 | E53: 4 | F53: Открытое занятие | J53: Открытое занятие | N53: Открытое занятие, тестирование | O53: 1 | P53: 15 | Q53: 4
A54: 44 | B54: Модифицированная «Мастерская красоты», 10-17 лет, 2 года | C54: 2 | D54: 30 | E54: 8 | F54: Итоговая творческая работа | J54: Итоговая творческая работа | O54: 2 | P54: 30 | Q54: 8
B55: Модифицированная «Ascension», 14-18 лет, 1 год | C55: 2 | D55: 30 | E55: 8 | F55: Итоговый показ | O55: 2 | P55: 30 | Q55: 8
A56: 45 | B56: Модифицированная «Хореография. Фантазия», 7-18 лет, 3 года | F56: Отчётный концерт | J56: Отчётный концерт | K56: 3 | L56: 30 | M56: 18 | N56: Отчётный концерт | O56: 3 | P56: 30 | Q56: 18
B57: ИТОГО: | C57: =SUM(C22:C56) -> 45 | D57: =SUM(D22:D56) -> 675 | E57: =SUM(E22:E56) -> 180 | G57: =SUM(G22:G56) -> 31 | H57: =SUM(H22:H56) -> 372 | I57: =SUM(I22:I56) -> 186 | K57: =SUM(K22:K56) -> 31 | L57: =SUM(L22:L56) -> 310 | M57: =SUM(M22:M56) -> 186 | O57: =SUM(O22:O56) -> 107 | P57: =SUM(P22:P56) -> 1357 | Q57: =SUM(Q22:Q56) -> 552 | R57: 160 | S57: 31 | T57: 377
B58: Туристско-краеведческая направленность
A59: 46 | B59: Авторская, «Туган як табигатен өйрәнү», 7-12 лет, 3 года | C59: 2 | D59: 30 | E59: 8 | F59: тестирование | G59: 2 | H59: 24 | I59: 12 | J59: творческая работа | K59: 1 | L59: 10 | M59: 6 | N59: итоговая выстовка | O59: 5 | P59: 64 | Q59: 26
A60: 47 | B60: Авторская, «Краеведение», 7-10 лет, 3 года | C60: 1 | D60: 15 | E60: 4 | F60: итоговая выставка | O60: 1 | P60: 15 | Q60: 4
A61: 48 | B61: Модифицированная «Туган як тарихын һәм мәдәниятен өйрәнү» 7-11 лет, 4 года | C61: 2 | D61: 30 | E61: 8 | F61: творческая работа | O61: 2 | P61: 30 | Q61: 8
A62: 49 | B62: Модифицированная, «Память» 10-14 лет, 3 года | C62: 1 | D62: 15 | E62: 4 | F62: защита реферата | K62: 1 | L62: 10 | M62: 6 | N62: защита проекта | O62: 2 | P62: 25 | Q62: 10
A63: 50 | B63: Модифицированная, «Изучение истории и культуры русского народа», 10-13 лет, 3 года | G63: 1 | H63: 12 | I63: 6 | J63: тестирование | K63: 1 | L63: 10 | M63: 6 | N63: защита проекта | O63: 2 | P63: 22 | Q63: 12
A64: 51 | B64: Модифицированная «Юный стрелок» 11-16 лет, 2 года | C64: 1 | D64: 15 | E64: 4 | F64: тестирование | G64: 1 | H64: 12 | I64: 6 | J64: соревнования | O64: 2 | P64: 27 | Q64: 10
A65: 52 | B65: Модифицированная «Меткий стрелок», 12-17 лет, 2 года | G65: 1 | H65: 12 | I65: 6 | J65: соревнования | O65: 1 | P65: 12 | Q65: 6
B66: ИТОГО: | C66: =SUM(C59:C65) -> 7 | D66: =SUM(D59:D65) -> 105 | E66: =SUM(E59:E65) -> 28 | G66: =SUM(G59:G65) -> 5 | H66: =SUM(H59:H65) -> 60 | I66: =SUM(I59:I65) -> 30 | K66: =SUM(K59:K65) -> 3 | L66: =SUM(L59:L65) -> 30 | M66: =SUM(M59:M65) -> 18 | O66: =SUM(O59:O65) -> 15 | P66: =SUM(P59:P65) -> 195 | Q66: =SUM(Q59:Q65) -> 76
B67: Естественнонаучная направленность
A68: 53 | B68: Авторская, «Веселый английский»,7-10 лет, 3 года | C68: 2 | D68: 30 | E68: 8 | F68: контрольная работа | O68: 2 | P68: 30 | Q68: 8
A69: 54 | B69: Модифицированная «Ищу, нахожу, сравниваю» 10-17 лет, 5 лет | K69: 1 | L69: 10 | M69: 6 | N69: защита проектов, участие в конференциях | O69: 1 | P69: 10 | Q69: 6
A70: 56 | B70: Модифицированная, «Экошкола», 11-17 лет, 2 года | C70: 1 | D70: 15 | E70: 4 | F70: итоговая выставка | G70: 1 | H70: 12 | I70: 6 | J70: итоговая выставка | O70: 2 | P70: 27 | Q70: 10
B71: ИТОГО: | C71: =SUM(C68:C70) -> 3 | D71: =SUM(D68:D70) -> 45 | E71: =SUM(E68:E70) -> 12 | G71: =SUM(G70:G70) -> 1 | H71: =SUM(H70:H70) -> 12 | I71: =SUM(I70:I70) -> 6 | K71: =SUM(K69:K70) -> 1 | L71: =SUM(L69:L70) -> 10 | M71: =SUM(M69:M70) -> 6 | O71: =SUM(O68:O70) -> 5 | P71: =SUM(P68:P70) -> 67 | Q71: =SUM(Q68:Q70) -> 24
B72: Социально-гуманитарная направленность
A73: 57 | B73: Авторская, «Школа инициативы», 14-17 лет, 3 года | C73: 1 | D73: 15 | E73: 4 | F73: Защита проекта | G73: 1 | H73: 12 | I73: 6 | J73: Проведение конкурса «Актив года» | N73: Защита проекта | O73: 2 | P73: 27 | Q73: 10 | S73: 2 | T73: 27
A74: 58 | B74: Адаптированная, «Шаг», 10-15 лет, 1 год | C74: 1 | D74: 14 | E74: 4 | F74: Защита творческих проектов | O74: 1 | P74: 14 | Q74: 4 | S74: 1 | T74: 14
A75: 59 | B75: Авторская, «Учеба профилактических волонтеров», 13-16 лет, 3 года | F75: Зачет | G75: 1 | H75: 12 | I75: 6 | J75: Зачет | K75: 1 | L75: 10 | M75: 6 | N75: Защита проекта | O75: 2 | P75: 22 | Q75: 12 | S75: 2 | T75: 22
A76: 60 | B76: Модифицированная, «Основы журналистики», 10-17 лет, 3 года | C76: 1 | D76: 15 | E76: 4 | F76: тестирование | K76: 1 | L76: 10 | M76: 6 | N76: тестирование | O76: 2 | P76: 25 | Q76: 10
A77: 61 | B77: Модифицированная, «Школа проектной деятельности», 13-17 лет, 2 года | F77: Защита проекта | G77: 2 | H77: 24 | I77: 12 | J77: Защита проекта | O77: 2 | P77: 24 | Q77: 12
B78: ИТОГО: | C78: =SUM(C73:C77) -> 3 | D78: =SUM(D73:D77) -> 44 | E78: =SUM(E73:E77) -> 12 | G78: =SUM(G73:G77) -> 4 | H78: =SUM(H73:H77) -> 48 | I78: =SUM(I73:I77) -> 24 | K78: =SUM(K75:K77) -> 2 | L78: =SUM(L75:L77) -> 20 | M78: =SUM(M75:M77) -> 12 | O78: =SUM(O73:O77) -> 9 | P78: =SUM(P73:P77) -> 112 | Q78: =SUM(Q73:Q77) -> 48 | S78: 5 | T78: 63
B79: Физкультурно-спортивная направленность
A80: 62 | B80: Типовая, «Шахматы»,8-14 лет, 3 года | G80: 4 | H80: 48 | I80: 24 | K80: 7 | L80: 70 | M80: 42 | O80: 11 | P80: 118 | Q80: 66
B81: ИТОГО: | G81: 4 | H81: 48 | I81: 24 | K81: 7 | L81: 70 | M81: 42 | O81: 11 | P81: 118 | Q81: 66
B82: ИТОГО ПО ВСЕМ НАПРАВЛЕННОСТЯМ: | C82: 69 | D82: 1034 | E82: 275 | G82: 50 | H82: 600 | I82: 300 | K82: 49 | L82: 490 | M82: 294 | O82: 168 | P82: 2124 | Q82: 870 | R82: 160 | S82: 46 | T82: 571
B85: Директор МБУ «Центр образования» НМР РТ Р.И.Джалолова
B87: Заместитель главного бухгалтера ЦБ Л.М. Галяева

Sheet Лист2
B5: 5
B6: 1
B7: 17
B8: 2
B9: 2
B10: 2
B11: 2
B12: 1
B13: 5
B14: 4
B15: 1
B16: 3
B17: 1
B18: 1
B19: 3
B20: 4
B21: 1
B22: 1
B23: 1
B24: 5
B25: 3
B26: 5
B27: 5
B28: 3
B29: 2
B30: 4
B31: 1
B32: 1
B33: 2
B34: 1
B35: 1
B36: 6
B37: 1
B38: 2
B39: =SUM(B5:B38) -> 99
B53: 11 | C53: 165 | D53: 44 | F53: 5 | G53: 60 | H53: 30 | J53: 5 | K53: 50 | L53: 30 | N53: 21 | O53: 275 | P53: 104
B54: 41 | C54: 615 | D54: 164 | F54: 30 | G54: 360 | H54: 180 | J54: 31 | K54: 310 | L54: 186 | N54: 102 | O54: 1285 | P54: 530
B55: 7 | C55: 105 | D55: 28 | F55: 5 | G55: 60 | H55: 30 | J55: 3 | K55: 30 | L55: 18 | N55: 15 | O55: 195 | P55: 76
B56: 3 | C56: 45 | D56: 12 | F56: 1 | G56: 12 | H56: 6 | J56: 1 | K56: 10 | L56: 6 | N56: 5 | O56: 67 | P56: 24
B57: 3 | C57: 45 | D57: 12 | F57: 4 | G57: 48 | H57: 24 | J57: 2 | K57: 20 | L57: 12 | N57: 9 | O57: 113 | P57: 48
F58: 4 | G58: 48 | H58: 24 | J58: 7 | K58: 70 | L58: 42 | N58: 11 | O58: 118 | P58: 66
B59: =SUM(B53:B58) -> 65 | C59: =SUM(C53:C58) -> 975 | D59: =SUM(D53:D58) -> 260 | F59: =SUM(F53:F58) -> 49 | G59: =SUM(G53:G58) -> 588 | H59: =SUM(H53:H58) -> 294 | J59: =SUM(J53:J58) -> 49 | K59: =SUM(K53:K58) -> 490 | L59: =SUM(L53:L58) -> 294 | N59: =SUM(N53:N58) -> 163 | O59: =SUM(O53:O58) -> 2053 | P59: =SUM(P53:P58) -> 848
B65: =SUM(B54:B64) -> 119 | C65: =SUM(C54:C64) -> 1785 | D65: =SUM(D54:D64) -> 476 | F65: 4 | G65: 48 | H65: 24 | J65: 6 | K65: 60 | L65: 36 | N65: 23 | O65: =SUM(O54:O64) -> 3831 | P65: =SUM(P54:P64) -> 1592
J70: 2 | K70: 30 | L70: 8
E71: 4 | F71: 44 | G71: 24 | J71: 4 | K71: 60 | L71: 16
E72: 4 | F72: 52 | G72: 20
E73: 3 | F73: 32 | G73: 18
E74: 1 | F74: 10 | G74: 6
E75: 1 | F75: 15 | G75: 4
E76: 1 | F76: 15 | G76: 4
E77: 1 | F77: 12 | G77: 6 | J77: 1 | K77: 15 | L77: 4
E78: 5 | F78: 75 | G78: 20
E79: 1 | F79: 15 | G79: 4
E80: 1 | F80: 15 | G80: 4
E81: =SUM(E71:E80) -> 22 | F81: =SUM(F71:F80) -> 285 | G81: =SUM(G71:G80) -> 110
J82: 2 | K82: 30 | L82: 8
C83: 1 | D83: 12 | E83: 6 | J83: 2 | K83: 30 | L83: 8
C84: 5 | D84: 60 | E84: 30
C85: 1 | D85: 12 | E85: 6
C86: 1 | D86: 12 | E86: 6
C87: 1 | D87: 12 | E87: 6
C89: 4 | D89: 48 | E89: 24 | J89: 1 | K89: 15 | L89: 4
C90: 3 | D90: 36 | E90: 18 | J90: 1 | K90: 15 | L90: 4
C91: 1 | D91: 12 | E91: 6 | J91: 1 | K91: 15 | L91: 4
J93: 5 | K93: 75 | L93: 20
C94: 1 | D94: 12 | E94: 6
J95: 1 | K95: 15 | L95: 4
C96: 2 | D96: 24 | E96: 12
C97: 1 | D97: 12 | E97: 6
C98: 1 | D98: 12 | E98: 6
C100: 1 | D100: 12 | E100: 6 | J100: 6 | K100: 90 | L100: 24
C101: 1 | D101: 12 | E101: 6
C103: 1 | D103: 12 | E103: 6 | J103: 5 | K103: 75 | L103: 20
C104: 2 | D104: 24 | E104: 12 | J104: 2 | K104: 30 | L104: 8
J105: =SUM(J70:J104) -> 33 | K105: =SUM(K70:K104) -> 495 | L105: =SUM(L70:L104) -> 132
C107: 4 | D107: 48 | E107: 24
I109: 2 | J109: 20 | K109: 12
C110: 1 | D110: 12 | E110: 6 | I110: 7 | J110: 70 | K110: 42
C112: 2 | D112: 24 | E112: 12
C114: 2 | D114: 24 | E114: 12 | I114: 1 | J114: 10 | K114: 6
C115: 2 | D115: 24 | E115: 12
C118: 1 | D118: 12 | E118: 6 | I118: 2 | J118: 20 | K118: 12
C119: =SUM(C83:C118) -> 39 | D119: =SUM(D83:D118) -> 468 | E119: =SUM(E83:E118) -> 234 | I119: 1 | J119: 10 | K119: 6
I121: 1 | J121: 10 | K121: 6
C123: 1 | D123: 10 | E123: 6
C124: 1 | D124: 12 | E124: 6
C125: 2 | D125: 25 | E125: 10 | I125: 1 | J125: 10 | K125: 6
I126: 3 | J126: 30 | K126: 18 | O126: 44
C127: 2 | D127: 30 | E127: 8 | O127: 52
C128: =SUM(C123:C127) -> 6 | D128: =SUM(D123:D127) -> 77 | E128: =SUM(E123:E127) -> 30 | O128: 32
I129: 3 | J129: 30 | K129: 18 | O129: 10
I130: 3 | J130: 30 | K130: 18 | O130: 15
I131: 1 | J131: 10 | K131: 6 | O131: 12
O132: 15
D133: 1 | O133: 15
D134: 5 | O134: 75
D135: 1 | I135: 1 | J135: 10 | K135: 6 | O135: 15
D136: 1 | I136: 1 | J136: 10 | K136: 6 | O136: =SUM(O126:O135) -> 285
D137: 1 | I137: 1 | J137: 10 | K137: 6
D138: 1
D140: 4
D141: 3
D142: 1
I144: =SUM(I109:I143) -> 28 | J144: =SUM(J109:J143) -> 280 | K144: =SUM(K109:K143) -> 168
D145: 1
D147: 2
D148: 1
D149: 1
D151: 1
D154: 1
D155: 1
D156: 2
D159: 4
D162: 1
D164: 2
E166: 2
D168: 2
D169: 1
D170: =SUM(D133:D169) -> 38 | E170: =SUM(E133:E169) -> 2
C201: =SUM(C191:C200) -> 0 | E201: =SUM(E191:E200) -> 0 | G201: =SUM(G191:G200) -> 0 | I201: =SUM(I191:I200) -> 0 | K201: =SUM(K191:K200) -> 0 | M201: =SUM(M191:M200) -> 0 | O201: 22 | P201: 285
B209: 11 | C209: 165 | D209: 44 | F209: 5 | G209: 60 | H209: 30 | J209: 6 | K209: 60 | L209: 36 | N209: 22 | O209: 285 | P209: 110 | R209: 11 | S209: 114
B210: 33 | C210: 495 | D210: 132 | F210: 39 | G210: 468 | H210: 234 | J210: 28 | K210: 280 | L210: 168 | N210: 100 | O210: 1243 | P210: 534 | Q210: 160 | R210: 33 | S210: 420
B211: 5 | C211: 75 | D211: 20 | F211: 8 | G211: 96 | H211: 48 | J211: 3 | K211: 30 | L211: 18 | N211: 16 | O211: 201 | P211: 86
B212: 0 | C212: 0 | D212: 0 | F212: 2 | G212: 24 | H212: 12 | J212: 0 | K212: 0 | L212: 0 | N212: 2 | O212: 24 | P212: 12
B213: =SUM(B209:B212) -> 49 | C213: =SUM(C209:C212) -> 735 | D213: =SUM(D209:D212) -> 196 | F213: =SUM(F209:F212) -> 54 | G213: =SUM(G209:G212) -> 648 | H213: =SUM(H209:H212) -> 324 | J213: =SUM(J209:J212) -> 37 | K213: =SUM(K209:K212) -> 370 | L213: =SUM(L209:L212) -> 222 | N213: =SUM(N209:N212) -> 140 | O213: 1753 | P213: 742 | Q213: 160 | R213: 44 | S213: 534
B218: 11 | C218: 165 | D218: 44 | F218: 5 | G218: 60 | H218: 30 | J218: 6 | K218: 60 | L218: 36 | N218: 22 | O218: 285 | P218: 110 | R218: 11 | S218: 114
B219: 33 | C219: 495 | D219: 132 | F219: 39 | G219: 468 | H219: 234 | J219: 28 | K219: 280 | L219: 168 | N219: 100 | O219: 1243 | P219: 534 | Q219: 160 | R219: 33 | S219: 420
B220: 5 | C220: 75 | D220: 20 | F220: 8 | G220: 96 | H220: 48 | J220: 3 | K220: 30 | L220: 18 | N220: 16 | O220: 201 | P220: 86
B221: 0 | C221: 0 | D221: 0 | F221: 2 | G221: 24 | H221: 12 | J221: 0 | K221: 0 | L221: 0 | N221: 2 | O221: 24 | P221: 12
B222: 8 | C222: 120 | D222: 32 | F222: 1 | G222: 12 | H222: 6 | J222: 4 | K222: 40 | L222: 24 | N222: 13 | O222: 172 | P222: 62 | R222: 4 | S222: 47
B223: =SUM(B218:B222) -> 57 | C223: =SUM(C218:C222) -> 855 | D223: =SUM(D218:D222) -> 228 | F223: =SUM(F218:F222) -> 55 | G223: =SUM(G218:G222) -> 660 | H223: =SUM(H218:H222) -> 330 | J223: =SUM(J218:J222) -> 41 | K223: =SUM(K218:K222) -> 410 | L223: =SUM(L218:L222) -> 246 | N223: =SUM(N218:N222) -> 153 | O223: 1925 | P223: 804 | Q223: 160 | R223: 48 | S223: 581
B227: 11 | C227: 165 | D227: 44 | F227: 5 | G227: 60 | H227: 30 | J227: 6 | K227: 60 | L227: 36 | N227: 22 | O227: 285 | P227: 110 | R227: 11 | S227: 114
B228: 33 | C228: 495 | D228: 132 | F228: 39 | G228: 468 | H228: 234 | J228: 28 | K228: 280 | L228: 168 | N228: 100 | O228: 1243 | P228: 534 | Q228: 160 | R228: 33 | S228: 420
B229: 5 | C229: 75 | D229: 20 | F229: 8 | G229: 96 | H229: 48 | J229: 3 | K229: 30 | L229: 18 | N229: 16 | O229: 201 | P229: 86
B230: 0 | C230: 0 | D230: 0 | F230: 2 | G230: 24 | H230: 12 | J230: 0 | K230: 0 | L230: 0 | N230: 2 | O230: 24 | P230: 12
B231: 7 | C231: 105 | D231: 28 | F231: 1 | G231: 12 | H231: 6 | J231: 2 | K231: 20 | L231: 12 | N231: 10 | O231: 137 | P231: 46 | R231: 5 | S231: 47
B232: 8 | C232: 120 | D232: 32 | F232: 1 | G232: 12 | H232: 6 | J232: 4 | K232: 40 | L232: 24 | N232: 13 | O232: 172 | P232: 62 | R232: 4 | S232: 47
B233: =SUM(B227:B232) -> 64 | C233: =SUM(C227:C232) -> 960 | D233: =SUM(D227:D232) -> 256 | F233: =SUM(F227:F232) -> 56 | G233: =SUM(G227:G232) -> 672 | H233: =SUM(H227:H232) -> 336 | J233: =SUM(J227:J232) -> 43 | K233: =SUM(K227:K232) -> 430 | L233: =SUM(L227:L232) -> 258 | N233: =SUM(N227:N232) -> 163 | O233: 2062 | P233: 850 | Q233: 160 | R233: 53 | S233: 628
D239: 5 | E239: 62
D244: 1 | E244: 10
I245: 5 | J245: 62
D247: 1 | E247: 12
D248: 2 | E248: 20
D249: 1 | E249: 10
D250: 1 | E250: 12 | I250: 1 | J250: 10
I253: 1 | J253: 12
I254: 2 | J254: 20
I255: 1 | J255: 10
D256: 2 | E256: 22 | I256: 1 | J256: 12
N259: 5 | O259: 62 | Q259: 5 | R259: 62
D261: 1 | E261: 10
D262: 5 | E262: 75 | I262: 2 | J262: 22
D263: 4 | E263: 48
N264: 1 | O264: 10
D265: 1 | E265: 10 | Q265: 1 | R265: 10
I267: 1 | J267: 10 | N267: 1 | O267: 12
D268: 2 | E268: 24 | I268: 5 | J268: 75 | N268: 2 | O268: 20 | Q268: 1 | R268: 12
I269: 4 | J269: 48 | N269: 1 | O269: 10 | Q269: 2 | R269: 20
D270: 1 | E270: 15 | N270: 1 | O270: 12 | Q270: 1 | R270: 10
I271: 1 | J271: 10 | Q271: 1 | R271: 12
D272: 5 | E272: 75
D274: =SUM(D239:D273) -> 32 | E274: =SUM(E239:E273) -> 405 | I274: 2 | J274: 24
N276: 2 | O276: 22
Q277: 2 | R277: 22
I278: 5 | J278: 75
I280: =SUM(I245:I279) -> 31 | J280: =SUM(J245:J279) -> 390
D281: 28 | N281: 1 | O281: 10
N282: 5 | O282: 75 | Q282: 1 | R282: 10
D283: 6 | N283: 4 | O283: 48 | Q283: 5 | R283: 75
Q284: 4 | R284: 48
N285: 1 | O285: 10
N288: 2 | O288: 24
Q289: 2 | R289: 24
N292: 5 | O292: 75 | Q292: 5 | R292: 75
N294: =SUM(N259:N293) -> 31 | O294: =SUM(O259:O293) -> 390 | Q294: =SUM(Q259:Q293) -> 30 | R294: =SUM(R259:R293) -> 380
J298: 211
J299: 1059
J300: 235
D301: 12 | J301: 132
D302: 34 | J302: 137
D303: 6 | J303: 172
J304: =SUM(J298:J303) -> 1946
D305: 12
J307: 211
D308: 12 | J308: 989
J309: 230
D310: 24 | J310: 132
J311: 76
J312: 191
J313: =SUM(J307:J312) -> 1829
D314: 20
D316: =SUM(D281:D315) -> 154
D321: 6 | E321: 90 | F321: 24 | H321: 5 | I321: 60 | J321: 30 | L321: 6 | M321: 60 | N321: 36 | P321: 17 | Q321: 211 | R321: 94
D322: 33 | E322: 495 | F322: 132 | H322: 22 | I322: 264 | J322: 132 | L322: 23 | M322: 230 | N322: 138 | P322: 78 | Q322: 989 | R322: 402
D323: 8 | E323: 120 | F323: 32 | H323: 5 | I323: 60 | J323: 30 | L323: 5 | M323: 50 | N323: 30 | P323: 18 | Q323: 230 | R323: 92
D324: 8 | E324: 120 | F324: 32 | L324: 1 | M324: 12 | N324: 6 | P324: 9 | Q324: 132 | R324: 38
D325: 2 | E325: 30 | F325: 8 | H325: 3 | I325: 36 | J325: 18 | L325: 1 | M325: 10 | N325: 6 | P325: 6 | Q325: 76 | R325: 32
D326: 5 | E326: 75 | F326: 20 | H326: 8 | I326: 96 | J326: 48 | P326: 15 | Q326: 191 | R326: 81
D327: =SUM(D321:D326) -> 62 | E327: =SUM(E321:E326) -> 930 | F327: =SUM(F321:F326) -> 248 | H327: =SUM(H321:H326) -> 43 | I327: =SUM(I321:I326) -> 516 | J327: =SUM(J321:J326) -> 258 | L327: =SUM(L321:L326) -> 36 | M327: =SUM(M321:M326) -> 362 | N327: =SUM(N321:N326) -> 216 | P327: =SUM(P321:P326) -> 143 | Q327: =SUM(Q321:Q326) -> 1829 | R327: =SUM(R321:R326) -> 739
C337: 6 | D337: 90 | E337: 24 | G337: 8 | H337: 96 | I337: 48 | K337: 4 | L337: 40 | M337: 24 | O337: 18 | P337: 226 | Q337: 96
... 323 more rows

Sheet Лист4
C4: =SUM(#REF!) ->  | D4: =SUM(#REF!) ->  | E4: =SUM(#REF!) ->  | G4: =SUM(#REF!) ->  | H4: =SUM(#REF!) ->  | I4: =SUM(#REF!) ->  | K4: =SUM(#REF!) ->  | L4: =SUM(#REF!) ->  | M4: =SUM(#REF!) ->  | O4: =SUM(#REF!) ->  | P4: =SUM(#REF!) ->  | Q4: =SUM(#REF!) -> 
C15: =SUM(C3:C14) ->  | D15: =SUM(D3:D14) ->  | E15: =SUM(E3:E14) ->  | G15: =SUM(G3:G14) ->  | H15: =SUM(H3:H14) ->  | I15: =SUM(I3:I14) ->  | K15: =SUM(K3:K14) ->  | L15: =SUM(L3:L14) ->  | M15: =SUM(M3:M14) ->  | O15: =SUM(O3:O14) ->  | P15: =SUM(P3:P14) ->  | Q15: =SUM(Q3:Q14) -> 
A21: =SUM(A9:A20) -> 0 | B21: =SUM(B9:B20) -> 0 | C21: =SUM(C9:C20) ->  | E21: =SUM(E9:E20) ->  | F21: =SUM(F9:F20) -> 0 | G21: =SUM(G9:G20) ->  | I21: =SUM(I9:I20) ->  | J21: =SUM(J9:J20) -> 0 | K21: =SUM(K9:K20) ->  | M21: =SUM(M9:M20) ->  | N21: =SUM(N9:N20) -> 0 | O21: =SUM(O9:O20) -> 
E26: 10 | F26: 150 | G26: 40 | H26: 2 | I26: 24 | J26: 12 | K26: 9 | L26: 90 | M26: 54 | N26: 21 | O26: 264 | P26: 106
E27: 38 | F27: 570 | G27: 152 | H27: 22 | I27: 264 | J27: 132 | K27: 25 | L27: 250 | M27: 150 | N27: 85 | O27: 1084 | P27: 434
E28: 7 | F28: 105 | G28: 28 | H28: 6 | I28: 72 | J28: 36 | K28: 2 | L28: 20 | M28: 12 | N28: 15 | O28: 197 | P28: 76
E29: 4 | F29: 60 | G29: 16 | H29: 2 | I29: 24 | J29: 12 | N29: 6 | O29: 84 | P29: 28
E30: 5 | F30: 75 | G30: 20 | H30: 1 | I30: 12 | J30: 6 | K30: 1 | L30: 10 | M30: 6 | N30: 7 | O30: 97 | P30: 32
E31: 5 | F31: 75 | G31: 20 | H31: 5 | I31: 60 | J31: 30 | K31: 7 | L31: 70 | M31: 42 | N31: 17 | O31: 205 | P31: 92
E32: =SUM(E26:E31) -> 69 | F32: 1035 | G32: 276 | H32: 38 | I32: 456 | J32: 228 | K32: 44 | L32: 440 | M32: 264 | N32: 151 | O32: 1931 | P32: 768
C35: 4 | D35: 60 | E35: 16 | F35: Творческая работа | G35: 1 | H35: 12 | I35: 6 | J35: Творческая работа | K35: 4 | L35: 40 | M35: 24 | N35: Творческая работа | O35: 9 | P35: 112 | Q35: 46
G36: 2 | H36: 24 | I36: 12 | J36: Творческая работа | O36: 2 | P36: 24 | Q36: 12
C37: 4 | D37: 60 | E37: 16 | F37: Творческая работа | O37: 4 | P37: 60 | Q37: 16
C38: 1 | D38: 15 | E38: 4 | F38: защита реферата | O38: 1 | P38: 15 | Q38: 4
C39: 1 | D39: 15 | E39: 4 | F39: Творческая работа | O39: 1 | P39: 15 | Q39: 4
C40: 2 | D40: 30 | E40: 8 | F40: Творческая работа | G40: 1 | H40: 12 | I40: 6 | J40: Творческая работа | K40: 1 | L40: 10 | M40: 6 | N40: Творческая работа | O40: 4 | P40: 52 | Q40: 20
C41: =SUM(C35:C40) -> 12 | D41: =SUM(D35:D40) -> 180 | E41: =SUM(E35:E40) -> 48 | G41: =SUM(G35:G40) -> 4 | H41: =SUM(H35:H40) -> 48 | I41: =SUM(I35:I40) -> 24 | K41: =SUM(K35:K40) -> 5 | L41: =SUM(L35:L40) -> 50 | M41: =SUM(M35:M40) -> 30 | O41: =SUM(O35:O40) -> 21 | P41: =SUM(P35:P40) -> 278 | Q41: =SUM(Q35:Q40) -> 102
C50: 1 | D50: 15 | E50: 4 | F50: Тестирование | G50: 2 | H50: 24 | I50: 12 | J50: творческая работа | K50: 2 | L50: 20 | M50: 12 | N50: Итоговая выстовка | O50: 5 | P50: 59 | Q50: 28
G51: 1 | H51: 12 | I51: 6 | J51: Итоговая выстовка | O51: 1 | P51: 12 | Q51: 6
C52: 2 | D52: 30 | E52: 8 | O52: 2 | P52: 30 | Q52: 8
K53: 1 | L53: 10 | M53: 6 | N53: Тестирование | O53: 1 | P53: 10 | Q53: 6
C54: =SUM(C50:C53) -> 3 | D54: =SUM(D50:D53) -> 45 | E54: =SUM(E50:E53) -> 12 | G54: =SUM(G50:G53) -> 3 | H54: =SUM(H50:H53) -> 36 | I54: =SUM(I50:I53) -> 18 | K54: =SUM(K50:K53) -> 3 | L54: =SUM(L50:L53) -> 30 | M54: =SUM(M50:M53) -> 18 | O54: =SUM(O50:O53) -> 9 | P54: =SUM(P50:P53) -> 111 | Q54: =SUM(Q50:Q53) -> 48
F63: 1 | G63: 15 | H63: 4 | I63: защита реферата
B64: 1 | C64: 15 | D64: 4 | E64: защита реферата
J65: 1 | K65: 10 | L65: 6 | M65: Защита проекта | N65: 1 | O65: 10 | P65: 6
B66: =SUM(B63:B65) -> 1 | C66: =SUM(C63:C65) -> 15 | D66: =SUM(D63:D65) -> 4 | F66: =SUM(F63:F65) -> 1 | G66: =SUM(G63:G65) -> 15 | H66: =SUM(H63:H65) -> 4 | J66: =SUM(J63:J65) -> 1 | K66: =SUM(K63:K65) -> 10 | L66: =SUM(L63:L65) -> 6 | N66: =SUM(N63:N65) -> 1 | O66: =SUM(O63:O65) -> 10 | P66: =SUM(P63:P65) -> 6
C70: Модифицированная, «Школа Кота да Винчи», 11-13 лет, 2 года | H70: 1 | I70: 12 | J70: 4 | K70: защита реферата | P70: 1 | Q70: 12 | R70: 6
C71: Модифицированная, «Уйла, эзлә,тап», 12-16 лет, 1 год | D71: 1 | E71: 15 | F71: 4 | G71: защита реферата | P71: 1 | Q71: 15 | R71: 4
C72: Модифицированная, «Яшь эзләнүчеләр», 12-16 лет, 3 года | L72: 1 | M72: 10 | N72: 6 | O72: Защита проекта | P72: 1 | Q72: 10 | R72: 6
D73: =SUM(D70:D72) -> 1 | E73: =SUM(E70:E72) -> 15 | F73: =SUM(F70:F72) -> 4 | H73: =SUM(H70:H72) -> 1 | I73: =SUM(I70:I72) -> 12 | J73: 6 | L73: =SUM(L70:L72) -> 1 | M73: =SUM(M70:M72) -> 10 | N73: =SUM(N70:N72) -> 6 | P73: =SUM(P70:P72) -> 3 | Q73: =SUM(Q70:Q72) -> 37 | R73: =SUM(R70:R72) -> 16
B105: =SUM(B93:B104) -> 0 | C105: =SUM(C93:C104) -> 0 | D105: =SUM(D93:D104) -> 0 | F105: =SUM(F93:F104) -> 0 | G105: =SUM(G93:G104) -> 0 | H105: =SUM(H93:H104) -> 0 | J105: =SUM(J93:J104) -> 0 | K105: =SUM(K93:K104) -> 0 | L105: =SUM(L93:L104) -> 0 | N105: =SUM(N93:N104) -> 0 | O105: =SUM(O93:O104) -> 0 | P105: =SUM(P93:P104) -> 0 | R105: =SUM(R93:R104) -> 0 | S105: =SUM(S93:S104) -> 0
B112: Адаптированная, «Лепка», 7-14 лет, 4 года | K112: 1 | L112: 10 | M112: 6 | N112: Практическая работа | O112: 1 | P112: 10 | Q112: 6 | S112: 1 | T112: 10
B113: Модифицированная, «Художники», 7-11 лет 4 года | C113: 1 | D113: 15 | E113: 4 | F113: Отчетная выставка | G113: 4 | H113: 48 | I113: 24 | J113: отчетная выставка | O113: 5 | P113: 63 | Q113: 28
B114: Модифицированная, «Веселая кисточка», 7-12 лет, 3 года | C114: 2 | D114: 30 | E114: 8 | F114: выставка | K114: 3 | L114: 30 | M114: 18 | N114: Итоговая выставка | O114: 5 | P114: 60 | Q114: 26
B115: Модифицированная, «ИЗО», 8-14 лет, 2 года | G115: 1 | H115: 12 | I115: 6 | J115: Итоговая выставка | K115: 2 | L115: 20 | M115: 12 | O115: 3 | P115: 32 | Q115: 18 | S115: 3 | T115: 32
B116: Авторская, «Основы дизайна», 7-13 лет, 4 года | G116: 2 | H116: 24 | I116: 12 | J116: Итоговая выставка | O116: 2 | P116: 24 | Q116: 12 | S116: 2 | T116: 24
B117: Авторская, «Бисероплетение», 7-15 лет, 3 года | G117: 1 | H117: 12 | I117: 6 | J117: выставка творческих работ | K117: 1 | L117: 10 | M117: 6 | N117: Тестирование | O117: 2 | P117: 22 | Q117: 12 | S117: 2 | T117: 22
B118: Авторская, «Цветоделие», 7-15 лет, 3 года | C118: 2 | D118: 30 | E118: 8 | F118: Итоговая выставка | O118: 2 | P118: 30 | Q118: 8
B119: Модифицированная, «Юный дизайнер», 7-14 лет,4 года | C119: 2 | D119: 30 | E119: 8 | F119: мини-выставка | K119: 2 | L119: 20 | M119: 12 | N119: Индивидуальная творческая работа | O119: 4 | P119: 50 | Q119: 20
B120: Авторская, «Волшебная кисточка», 7-15 лет, 3 года | G120: 1 | H120: 12 | I120: 6 | J120: мини-выставка | O120: 1 | P120: 12 | Q120: 6
B121: Модифицированная, «Калейдоскоп фантазий», 10-15 лет, 3 года | K121: 1 | L121: 10 | M121: 6 | N121: итоговая творческая работа, выставка | O121: 1 | P121: 10 | Q121: 6
B122: Модифицированная, «Кудесники», 7-10 лет, 2 года | C122: 1 | D122: 15 | E122: 4 | F122: Итоговая выставка | O122: 1 | P122: 15 | Q122: 4
B123: Модифицированная, «Волшебная мастерская», 7-11 лет, 4 года | K123: 1 | L123: 10 | M123: 6 | N123: Итоговая выставка | O123: 1 | P123: 10 | Q123: 6
B124: Модифицированная, «Art-студия», 7-14 лет,4 года | C124: 1 | D124: 15 | E124: 4 | F124: тестирование | O124: 1 | P124: 15 | Q124: 4
B125: Модифицированная, «Разноцветная палитра», 7-11 лет,1год | C125: 1 | D125: 15 | E125: 4 | F125: тестирование | O125: 1 | P125: 15 | Q125: 4
B126: Модифицированная, «Юные да Винчи», 7-11 лет, 1 год | C126: 1 | D126: 15 | E126: 4 | F126: Тестирование выставка | O126: 1 | P126: 15 | Q126: 4
C127: =SUM(C112:C126) -> 11 | D127: =SUM(D112:D126) -> 165 | E127: =SUM(E112:E126) -> 44 | G127: =SUM(G112:G126) -> 9 | H127: =SUM(H112:H126) -> 108 | I127: =SUM(I112:I126) -> 54 | K127: =SUM(K112:K126) -> 11 | L127: =SUM(L112:L126) -> 110 | M127: =SUM(M112:M126) -> 66 | O127: =SUM(O112:O126) -> 31 | P127: =SUM(P112:P126) -> 383 | Q127: =SUM(Q112:Q126) -> 164 | S127: =SUM(S112:S126) -> 8 | T127: =SUM(T112:T126) -> 88

Sheet Лист1
C3: 1 | D3: 15 | E3: 4 | G3: 1 | H3: 12 | J3: 3 | K3: 30 | L3: 18 | N3: 2 | O3: 30 | P3: 8
J4: 1 | K4: 10 | L4: 6 | N4: 1 | O4: 15 | P4: 4
C5: 6 | D5: 90 | E5: 24 | G5: 4 | H5: 48 | J5: 7 | K5: 70 | L5: 42 | N5: 2 | O5: 30 | P5: 8
C6: 2 | D6: 30 | E6: 8 | N6: 1 | O6: 15 | P6: 4
G7: 2 | H7: 24 | N7: =SUM(N3:N6) -> 6 | O7: =SUM(O3:O6) -> 90 | P7: =SUM(P3:P6) -> 24
C8: 2 | D8: 30 | E8: 8
C9: 2 | D9: 30 | E9: 8 | G9: =SUM(G3:G8) -> 7 | H9: =SUM(H3:H8) -> 84 | J9: =SUM(J3:J8) -> 11 | K9: =SUM(K3:K8) -> 110 | L9: =SUM(L3:L8) -> 66
C10: =SUM(C3:C9) -> 13 | D10: =SUM(D3:D9) -> 195 | E10: =SUM(E3:E9) -> 52
B13: ИТОГО: | C13: =SUM(C3:C12) -> 26 | D13: =SUM(D3:D12) -> 390 | E13: =SUM(E3:E12) -> 104 | G13: =SUM(G3:G10) -> 14 | H13: =SUM(H3:H10) -> 168 | I13: =SUM(I3:I10) -> 0 | K13: 5 | L13: 50 | M13: 30 | O13: =SUM(O3:O12) -> 180 | P13: =SUM(P3:P12) -> 48 | Q13: =SUM(Q3:Q12) -> 0 | S13: =SUM(S3:S12) -> 0 | T13: =SUM(T3:T12) -> 0
B21: 1 | C21: 15 | D21: 4 | F21: 1 | G21: 12 | H21: 6 | K21: 3 | L21: 30 | M21: 18
K22: 1 | L22: 10 | M22: 6
B23: 6 | C23: 90 | D23: 24 | F23: 4 | G23: 48 | H23: 24 | K23: 7 | L23: 70 | M23: 42
B24: 2 | C24: 30 | D24: 8
F25: 2 | G25: 24 | H25: 12
B26: 2 | C26: 30 | D26: 8
B27: 2 | C27: 30 | D27: 8 | F27: =SUM(F21:F26) -> 7 | G27: =SUM(G21:G26) -> 84 | H27: =SUM(H21:H26) -> 42 | K27: =SUM(K21:K26) -> 11 | L27: =SUM(L21:L26) -> 110 | M27: =SUM(M21:M26) -> 66
B28: =SUM(B21:B27) -> 13 | C28: =SUM(C21:C27) -> 195 | D28: =SUM(D21:D27) -> 52
K32: 1 | L32: 10 | M32: 6
B33: 5 | C33: 75 | D33: 20
F34: 3 | G34: 36 | H34: 18 | K34: 1 | L34: 10 | M34: 6
B35: 1 | C35: 15 | D35: 4
F36: 2 | G36: 24 | H36: 12 | K36: 1 | L36: 10 | M36: 6
F37: 1 | G37: 12 | H37: 6
B38: 1 | C38: 15 | D38: 4
F39: 2 | G39: 24 | H39: 12 | K39: 1 | L39: 10 | M39: 6
B40: 2 | C40: 30 | D40: 8 | K40: 2 | L40: 20 | M40: 12
B41: 1 | C41: 15 | D41: 4
B42: 1 | C42: 15 | D42: 4
F43: 1 | G43: 12 | H43: 6
B44: 1 | C44: 15 | D44: 4 | F44: 4 | G44: 48 | H44: 24
B45: 1 | C45: 15 | D45: 4
B46: =SUM(B33:B45) -> 13 | C46: =SUM(C33:C45) -> 195 | D46: =SUM(D33:D45) -> 52 | F46: 3 | G46: 36 | H46: 18 | K46: =SUM(K32:K45) -> 6 | L46: =SUM(L32:L45) -> 60 | M46: =SUM(M32:M45) -> 36
F47: =SUM(F34:F46) -> 16 | G47: =SUM(G34:G46) -> 192 | H47: =SUM(H34:H46) -> 96
B52: 1 | C52: 15 | D52: 4 | F52: 1 | G52: 12 | H52: 6 | J52: 3 | K52: 30 | L52: 18
B53: 1 | C53: 15 | D53: 4 | F53: 1 | G53: 12 | H53: 6 | J53: 3 | K53: 30 | L53: 18
B54: 2 | C54: 30 | D54: 8 | F54: 1 | G54: 12 | H54: 6
F56: 2 | G56: 24 | H56: 12
B57: 2 | C57: 30 | D57: 8 | J57: 2 | K57: 20 | L57: 12
J58: 1 | K58: 10 | L58: 6
J59: 1 | K59: 10 | L59: 6
F60: 1 | G60: 12 | H60: 6 | J60: 1 | K60: 10 | L60: 6
B61: 1 | C61: 15 | D61: 4
F62: 1 | G62: 12 | H62: 6
B63: 6 | C63: 90 | D63: 24
B64: 1 | C64: 15 | D64: 4
B65: 2 | C65: 30 | D65: 8
B66: =SUM(B52:B65) -> 16 | C66: =SUM(C52:C65) -> 240 | D66: =SUM(D52:D65) -> 64 | F66: =SUM(F52:F65) -> 7 | G66: =SUM(G52:G65) -> 84 | H66: =SUM(H52:H65) -> 42 | J66: =SUM(J52:J65) -> 11 | K66: =SUM(K52:K65) -> 110 | L66: =SUM(L52:L65) -> 66
B71: 11 | C71: 165 | D71: 44 | F71: 5 | G71: 60 | H71: 30 | J71: 5 | K71: 50 | L71: 30 | N71: 21 | O71: 275 | P71: 104
B72: 1 | C72: 15 | D72: 4 | F72: 2 | G72: 24 | H72: 12 | N72: 3 | O72: 39 | P72: 16
B73: 13 | C73: 195 | D73: 52 | F73: 7 | G73: 84 | H73: 42 | J73: 11 | K73: 110 | L73: 66 | N73: 31 | O73: 389 | P73: 160
B74: 6 | C74: 90 | D74: 24 | F74: 3 | G74: 36 | H74: 18 | J74: 3 | K74: 30 | L74: 18 | N74: 12 | O74: 156 | P74: 60
B75: 13 | C75: 195 | D75: 52 | F75: 16 | G75: 192 | H75: 96 | J75: 6 | K75: 60 | L75: 36 | N75: 35 | O75: 484 | P75: 184
B76: 1 | C76: 15 | D76: 4 | F76: 1 | G76: 12 | H76: 6 | N76: 2 | O76: 27 | P76: 10
B77: 16 | C77: 240 | D77: 64 | F77: 7 | G77: 84 | H77: 42 | J77: 11 | K77: 110 | L77: 66 | N77: 34 | O77: 434 | P77: 172
B78: 3 | C78: 45 | D78: 12 | F78: 4 | G78: 48 | H78: 24 | J78: 2 | K78: 20 | L78: 12 | N78: 9 | O78: 113 | P78: 48
F79: 4 | G79: 48 | H79: 24 | J79: 7 | K79: 70 | L79: 42 | N79: 11 | O79: 118 | P79: 66
B80: =SUM(B71:B79) -> 64 | C80: =SUM(C71:C79) -> 960 | D80: =SUM(D71:D79) -> 256 | F80: =SUM(F71:F79) -> 49 | G80: =SUM(G71:G79) -> 588 | H80: =SUM(H71:H79) -> 294 | J80: =SUM(J71:J79) -> 45 | K80: =SUM(K71:K79) -> 450 | L80: =SUM(L71:L79) -> 270 | N80: =SUM(N71:N79) -> 158 | O80: =SUM(O71:O79) -> 2035 | P80: =SUM(P71:P79) -> 820
B83: 11 | C83: 165 | D83: 44 | F83: 5 | G83: 60 | H83: 30 | J83: 5 | K83: 50 | L83: 30 | N83: 21 | O83: 275
B84: 1 | C84: 15 | D84: 4 | F84: 2 | G84: 24 | H84: 12 | N84: 3 | O84: 39
B85: 13 | C85: 195 | D85: 52 | F85: 7 | G85: 84 | H85: 42 | J85: 11 | K85: 110 | L85: 66 | N85: 31 | O85: 389
B86: 6 | C86: 90 | D86: 24 | F86: 3 | G86: 36 | H86: 18 | J86: 3 | K86: 30 | L86: 18 | N86: 12 | O86: 156
B87: 13 | C87: 195 | D87: 52 | F87: 16 | G87: 192 | H87: 96 | J87: 6 | K87: 60 | L87: 36 | N87: 35 | O87: 484
B88: 1 | C88: 15 | D88: 4 | F88: 1 | G88: 12 | H88: 6 | N88: 2 | O88: 27
B89: 16 | C89: 240 | D89: 64 | F89: 7 | G89: 84 | H89: 42 | J89: 14 | K89: 140 | L89: 84 | N89: 34 | O89: 434
B90: 3 | C90: 45 | D90: 12 | F90: 4 | G90: 48 | H90: 24 | J90: 2 | K90: 20 | L90: 12 | N90: 9 | O90: 113
F91: 4 | G91: 48 | H91: 24 | J91: 7 | K91: 70 | L91: 42 | N91: 11 | O91: 118
B92: =SUM(B83:B91) -> 64 | C92: =SUM(C83:C91) -> 960 | D92: =SUM(D83:D91) -> 256 | F92: =SUM(F83:F91) -> 49 | G92: =SUM(G83:G91) -> 588 | H92: =SUM(H83:H91) -> 294 | J92: =SUM(J83:J91) -> 48 | K92: =SUM(K83:K91) -> 480 | L92: =SUM(L83:L91) -> 288 | N92: =SUM(N83:N91) -> 158 | O92: =SUM(O83:O91) -> 2035
B95: 11 | C95: 165 | D95: 44 | F95: 5 | G95: 60 | H95: 30 | J95: 5 | K95: 50 | L95: 30 | N95: 21 | O95: 275 | P95: 104
B96: 1 | C96: 15 | D96: 4 | F96: 2 | G96: 24 | H96: 12 | N96: 3 | O96: 39 | P96: 16
B97: 13 | C97: 195 | D97: 52 | F97: 7 | G97: 84 | H97: 42 | J97: 11 | K97: 110 | L97: 66 | N97: 31 | O97: 389 | P97: 160
B98: 6 | C98: 90 | D98: 24 | F98: 3 | G98: 36 | H98: 18 | J98: 3 | K98: 30 | L98: 18 | N98: 12 | O98: 156 | P98: 60
B99: 13 | C99: 195 | D99: 52 | F99: 16 | G99: 192 | H99: 96 | J99: 6 | K99: 60 | L99: 36 | N99: 35 | O99: 484 | P99: 184
B100: 1 | C100: 15 | D100: 4 | F100: 1 | G100: 12 | H100: 6 | N100: 2 | O100: 27 | P100: 10
B101: 16 | C101: 240 | D101: 64 | F101: 7 | G101: 84 | H101: 42 | J101: 14 | K101: 140 | L101: 84 | N101: 37 | O101: 464 | P101: 190
B102: 3 | C102: 45 | D102: 12 | F102: 4 | G102: 48 | H102: 24 | J102: 2 | K102: 20 | L102: 12 | N102: 9 | O102: 113 | P102: 48
F103: 4 | G103: 48 | H103: 24 | J103: 7 | K103: 70 | L103: 42 | N103: 11 | O103: 118 | P103: 66
B104: =SUM(B95:B103) -> 64 | C104: =SUM(C95:C103) -> 960 | D104: =SUM(D95:D103) -> 256 | F104: =SUM(F95:F103) -> 49 | G104: =SUM(G95:G103) -> 588 | H104: =SUM(H95:H103) -> 294 | J104: =SUM(J95:J103) -> 48 | K104: =SUM(K95:K103) -> 480 | L104: =SUM(L95:L103) -> 288 | N104: =SUM(N95:N103) -> 161 | O104: =SUM(O95:O103) -> 2065 | P104: =SUM(P95:P103) -> 838
B108: 11 | C108: 165 | D108: 44 | F108: 5 | G108: 60 | H108: 30 | J108: 5 | K108: 50 | L108: 30 | N108: 21 | O108: 275 | P108: 104
B109: 1 | C109: 15 | D109: 4 | F109: 2 | G109: 24 | H109: 12 | N109: 3 | O109: 39 | P109: 16
B110: 13 | C110: 195 | D110: 52 | F110: 7 | G110: 84 | H110: 42 | J110: 11 | K110: 110 | L110: 66 | N110: 31 | O110: 389 | P110: 160
B111: 6 | C111: 90 | D111: 24 | F111: 3 | G111: 36 | H111: 18 | J111: 3 | K111: 30 | L111: 18 | N111: 12 | O111: 156 | P111: 60
B112: 12 | C112: 180 | D112: 48 | F112: 16 | G112: 192 | H112: 96 | J112: 6 | K112: 60 | L112: 36 | N112: 34 | O112: 432 | P112: 180
B113: 3 | C113: 45 | D113: 12 | F113: 1 | G113: 12 | H113: 6 | N113: 4 | O113: 57 | P113: 18
B114: 16 | C114: 240 | D114: 64 | F114: 7 | G114: 84 | H114: 42 | J114: 14 | K114: 140 | L114: 84 | N114: 37 | O114: 464 | P114: 190
B115: 3 | C115: 45 | D115: 12 | F115: 4 | G115: 48 | H115: 24 | J115: 2 | K115: 20 | L115: 12 | N115: 9 | O115: 113 | P115: 48
F116: 4 | G116: 48 | H116: 24 | J116: 7 | K116: 70 | L116: 42 | N116: 11 | O116: 118 | P116: 66
B117: =SUM(B108:B116) -> 65 | C117: =SUM(C108:C116) -> 975 | D117: =SUM(D108:D116) -> 260 | F117: =SUM(F108:F116) -> 49 | G117: =SUM(G108:G116) -> 588 | H117: =SUM(H108:H116) -> 294 | J117: =SUM(J108:J116) -> 48 | K117: =SUM(K108:K116) -> 480 | L117: =SUM(L108:L116) -> 288 | N117: =SUM(N108:N116) -> 162 | O117: =SUM(O108:O116) -> 2043 | P117: =SUM(P108:P116) -> 842
B122: 5 | C122: 75 | D122: 20
B124: 1 | C124: 15 | D124: 4
B127: 1 | C127: 15 | D127: 4
B129: 2 | C129: 30 | D129: 8
B130: 1 | C130: 15 | D130: 4
B131: 1 | C131: 15 | D131: 4
B133: 1 | C133: 15 | D133: 4
B134: =SUM(B122:B133) -> 12 | C134: =SUM(C122:C133) -> 180 | D134: =SUM(D122:D133) -> 48
B138: 11 | C138: 165 | D138: 44 | F138: 5 | G138: 60 | H138: 30 | J138: 5 | K138: 50 | L138: 30 | N138: 21 | O138: 275 | P138: 104
B139: 1 | C139: 15 | D139: 4 | F139: 2 | G139: 24 | H139: 12 | N139: 3 | O139: 39 | P139: 16
B140: 13 | C140: 195 | D140: 52 | F140: 7 | G140: 84 | H140: 42 | J140: 11 | K140: 110 | L140: 66 | N140: 31 | O140: 389 | P140: 160
B141: 6 | C141: 90 | D141: 24 | F141: 3 | G141: 36 | H141: 18 | J141: 3 | K141: 30 | L141: 18 | N141: 12 | O141: 156 | P141: 60
J142: 1 | K142: 10 | L142: 6 | N142: 1 | O142: 10 | P142: 6
B143: 12 | C143: 180 | D143: 48 | F143: 16 | G143: 192 | H143: 96 | J143: 6 | K143: 60 | L143: 36 | N143: 34 | O143: 432 | P143: 180
B144: 3 | C144: 45 | D144: 12 | F144: 1 | G144: 12 | H144: 6 | N144: 4 | O144: 57 | P144: 18
B145: 16 | C145: 240 | D145: 64 | F145: 7 | G145: 84 | H145: 42 | J145: 14 | K145: 140 | L145: 84 | N145: 37 | O145: 464 | P145: 190
B146: 3 | C146: 45 | D146: 12 | F146: 4 | G146: 48 | H146: 24 | J146: 2 | K146: 20 | L146: 12 | N146: 9 | O146: 113 | P146: 48
F147: 4 | G147: 48 | H147: 24 | J147: 7 | K147: 70 | L147: 42 | N147: 11 | O147: 118 | P147: 66
B148: =SUM(B138:B147) -> 65 | C148: =SUM(C138:C147) -> 975 | D148: =SUM(D138:D147) -> 260 | F148: =SUM(F138:F147) -> 49 | G148: =SUM(G138:G147) -> 588 | H148: =SUM(H138:H147) -> 294 | J148: =SUM(J138:J147) -> 49 | K148: =SUM(K138:K147) -> 490 | L148: =SUM(L138:L147) -> 294 | N148: =SUM(N138:N147) -> 163 | O148: =SUM(O138:O147) -> 2053 | P148: =SUM(P138:P147) -> 848
B153: 11 | C153: 165 | D153: 44 | F153: 5 | G153: 60 | H153: 30 | J153: 5 | K153: 50 | L153: 30 | N153: 21 | O153: 275 | P153: 104
B154: 41 | C154: 615 | D154: 164 | F154: 30 | G154: 360 | H154: 180 | J154: 31 | K154: 310 | L154: 186 | N154: 102 | O154: 1285 | P154: 530
B155: 7 | C155: 105 | D155: 28 | F155: 5 | G155: 60 | H155: 30 | J155: 3 | K155: 30 | L155: 18 | N155: 15 | O155: 195 | P155: 76
B156: 3 | C156: 45 | D156: 12 | F156: 1 | G156: 12 | H156: 6 | J156: 1 | K156: 10 | L156: 6 | N156: 5 | O156: 67 | P156: 24
B157: 3 | C157: 45 | D157: 12 | F157: 4 | G157: 48 | H157: 24 | J157: 2 | K157: 20 | L157: 12 | N157: 9 | O157: 113 | P157: 48
F158: 4 | G158: 48 | H158: 24 | J158: 7 | K158: 70 | L158: 42 | N158: 11 | O158: 118 | P158: 66
B159: =SUM(B153:B158) -> 65 | C159: =SUM(C153:C158) -> 975 | D159: =SUM(D153:D158) -> 260 | F159: =SUM(F153:F158) -> 49 | G159: =SUM(G153:G158) -> 588 | H159: =SUM(H153:H158) -> 294 | J159: =SUM(J153:J158) -> 49 | K159: =SUM(K153:K158) -> 490 | L159: =SUM(L153:L158) -> 294 | N159: =SUM(N153:N158) -> 163 | O159: =SUM(O153:O158) -> 2053 | P159: =SUM(P153:P158) -> 848
B163: 11 | C163: 165 | D163: 44 | F163: 5 | G163: 60 | H163: 30 | J163: 5 | K163: 50 | L163: 30 | N163: 21 | O163: 275 | P163: 104
B164: 41 | C164: 615 | D164: 164 | F164: 30 | G164: 360 | H164: 180 | J164: 31 | K164: 310 | L164: 186 | N164: 99 | O164: 1285 | P164: 530
B165: 7 | C165: 105 | D165: 28 | F165: 5 | G165: 60 | H165: 30 | J165: 3 | K165: 30 | L165: 18 | N165: 15 | O165: 195 | P165: 76
B166: 3 | C166: 45 | D166: 12 | F166: 1 | G166: 12 | H166: 6 | N166: 4 | O166: 57 | P166: 18
B167: 3 | C167: 45 | D167: 12 | F167: 4 | G167: 48 | H167: 24 | J167: 2 | K167: 20 | L167: 12 | N167: 9 | O167: 113 | P167: 48
F168: 4 | G168: 48 | H168: 24 | J168: 7 | K168: 70 | L168: 42 | N168: 11 | O168: 118 | P168: 66
B169: =SUM(B163:B168) -> 65 | C169: =SUM(C163:C168) -> 975 | D169: =SUM(D163:D168) -> 260 | F169: =SUM(F163:F168) -> 49 | G169: =SUM(G163:G168) -> 588 | H169: =SUM(H163:H168) -> 294 | J169: =SUM(J163:J168) -> 48 | K169: =SUM(K163:K168) -> 480 | L169: =SUM(L163:L168) -> 288 | N169: =SUM(N163:N168) -> 159 | O169: =SUM(O163:O168) -> 2043 | P169: =SUM(P163:P168) -> 842
B172: 11 | C172: 165 | D172: 44 | F172: 5 | G172: 60 | H172: 30 | J172: 5 | K172: 50 | L172: 30 | N172: 21 | O172: 275 | P172: 104
B173: 41 | C173: 615 | D173: 164 | F173: 30 | G173: 360 | H173: 180 | J173: 31 | K173: 310 | L173: 186 | N173: 99 | O173: 1285 | P173: 530
B174: 7 | C174: 105 | D174: 28 | F174: 5 | G174: 60 | H174: 30 | J174: 3 | K174: 30 | L174: 18 | N174: 15 | O174: 195 | P174: 76
B175: 3 | C175: 45 | D175: 12 | F175: 4 | G175: 48 | H175: 24 | J175: 2 | K175: 20 | L175: 12 | N175: 9 | O175: 113 | P175: 48
F176: 4 | G176: 48 | H176: 24 | J176: 7 | K176: 70 | L176: 42 | N176: 11 | O176: 118 | P176: 66
B177: 3 | C177: 45 | D177: 12 | F177: 1 | G177: 12 | H177: 6 | J177: 1 | K177: 10 | L177: 6 | N177: 5 | O177: 67 | P177: 24
B178: =SUM(B172:B177) -> 65 | C178: =SUM(C172:C177) -> 975 | D178: =SUM(D172:D177) -> 260 | F178: =SUM(F172:F177) -> 49 | G178: =SUM(G172:G177) -> 588 | H178: =SUM(H172:H177) -> 294 | J178: =SUM(J172:J177) -> 49 | K178: =SUM(K172:K177) -> 490 | L178: =SUM(L172:L177) -> 294 | N178: =SUM(N172:N177) -> 160 | O178: =SUM(O172:O177) -> 2053 | P178: =SUM(P172:P177) -> 848
B184: 11 | C184: 165 | D184: 44 | F184: 5 | G184: 60 | H184: 30 | J184: 5 | K184: 50 | L184: 30 | N184: 21 | O184: 275 | P184: 104
B185: 42 | C185: 630 | D185: 168 | F185: 31 | G185: 372 | H185: 186 | J185: 31 | K185: 310 | L185: 186 | N185: 102 | O185: 1282 | P185: 532
B186: 7 | C186: 105 | D186: 28 | F186: 5 | G186: 60 | H186: 30 | J186: 3 | K186: 30 | L186: 18 | N186: 15 | O186: 195 | P186: 76
B187: 3 | C187: 45 | D187: 12 | F187: 1 | G187: 12 | H187: 6 | J187: 1 | K187: 10 | L187: 6 | N187: 5 | O187: 67 | P187: 24
B188: 3 | C188: 45 | D188: 12 | F188: 4 | G188: 48 | H188: 24 | J188: 2 | K188: 20 | L188: 12 | N188: 9 | O188: 113 | P188: 48
F189: 4 | G189: 48 | H189: 24 | J189: 7 | K189: 70 | L189: 42 | N189: 11 | O189: 118 | P189: 66
B190: =SUM(B184:B189) -> 66 | C190: =SUM(C184:C189) -> 990 | D190: =SUM(D184:D189) -> 264 | F190: =SUM(F184:F189) -> 50 | G190: =SUM(G184:G189) -> 600 | H190: =SUM(H184:H189) -> 300 | J190: =SUM(J184:J189) -> 49 | K190: =SUM(K184:K189) -> 490 | L190: =SUM(L184:L189) -> 294 | N190: =SUM(N184:N189) -> 163 | O190: =SUM(O184:O189) -> 2050 | P190: =SUM(P184:P189) -> 850
D194: 28
D197: 8
H201: 28
H204: 8
K213: 36
D215: 28
D216: 28 | K216: 8
D218: 12
D219: 20
D220: 6
H222: 28
H223: 22 | N223: 36
D224: 24
H225: 12
D226: =SUM(D194:D225) -> 154 | H226: 20 | N226: 8
H227: 6
H231: 24
H234: =SUM(H201:H233) -> 148 | K234: 28
K235: 28
K237: 12
E238: 36 | K238: 20
K239: 6
E241: 8
K243: 24
N244: 28
N245: 26
K246: =SUM(K213:K245) -> 162
N247: 12
N248: 20
N249: 6
N253: 24
N255: =SUM(N223:N254) -> 160
E259: 28
E260: 26
E262: 12
E263: 20
E264: 6
E268: 24
E269: =SUM(E238:E268) -> 160
B276: 11 | C276: 165 | D276: 44 | F276: 5 | G276: 60 | H276: 30 | J276: 5 | K276: 50 | L276: 30 | N276: 21 | O276: 275 | P276: 104
B277: 45 | C277: 675 | D277: 180 | F277: 31 | G277: 372 | H277: 186 | J277: 31 | K277: 310 | L277: 186 | N277: 105 | O277: 1327 | P277: 544
B278: 7 | C278: 105 | D278: 28 | F278: 5 | G278: 60 | H278: 30 | J278: 3 | K278: 30 | L278: 18 | N278: 15 | O278: 195 | P278: 76
B279: 3 | C279: 45 | D279: 12 | F279: 1 | G279: 12 | H279: 6 | J279: 1 | K279: 10 | L279: 6 | N279: 5 | O279: 67 | P279: 24
B280: 3 | C280: 44 | D280: 12 | F280: 4 | G280: 48 | H280: 24 | J280: 2 | K280: 20 | L280: 12 | N280: 9 | O280: 112 | P280: 48
F281: 4 | G281: 48 | H281: 24 | J281: 7 | K281: 70 | L281: 42 | N281: 11 | O281: 118 | P281: 66
B282: =SUM(B276:B281) -> 69 | C282: =SUM(C276:C281) -> 1034 | D282: =SUM(D276:D281) -> 276 | F282: =SUM(F276:F281) -> 50 | G282: =SUM(G276:G281) -> 600 | H282: =SUM(H276:H281) -> 300 | J282: =SUM(J276:J281) -> 49 | K282: =SUM(K276:K281) -> 490 | L282: =SUM(L276:L281) -> 294 | N282: =SUM(N276:N281) -> 166 | O282: =SUM(O276:O281) -> 2094 | P282: =SUM(P276:P281) -> 862
C285: 7 | D285: 87 | E285: 36 | G285: 87
C286: 1 | D286: 10 | E286: 6 | G286: 10
C287: 17 | D287: 205 | E287: 92 | G287: 205
C288: 2 | D288: 30 | E288: 8 | G288: 30
C289: 2 | D289: 24 | E289: 12 | G289: 24
C290: 2 | D290: 30 | E290: 8 | G290: 30
C291: 2 | D291: 30 | E291: 8 | G291: 30
C292: 1 | D292: 10 | E292: 6 | G292: 10
C293: 6 | D293: 90 | E293: 24 | G293: 90
C294: 4 | D294: 46 | E294: 24 | G294: 46
C295: 1 | D295: 15 | E295: 4 | G295: 15
C296: 3 | D296: 34 | E296: 18 | G296: 34
C297: 1 | D297: 12 | E297: 6 | G297: 12
C298: 1 | D298: 15 | E298: 4 | G298: 15
C299: 3 | D299: 34 | E299: 18 | G299: 34
C300: 4 | D300: 50 | E300: 20 | G300: 50
C301: 1 | D301: 15 | E301: 4 | G301: 15
C302: 1 | D302: 15 | E302: 4 | G302: 15
C303: 1 | D303: 12 | E303: 6 | G303: 12
C304: 5 | D304: 63 | E304: 28 | G304: 63
... 114 more rows

Sheet Лист5
B5: ИТОГО: | C5: =SUM(#REF!) ->  | E5: =SUM(#REF!) ->  | G5: =SUM(#REF!) ->  | I5: =SUM(#REF!) ->  | K5: =SUM(#REF!) ->  | M5: =SUM(#REF!) ->  | O5: =SUM(#REF!) ->  | P5: =SUM(#REF!) ->  | Q5: =SUM(#REF!) ->  | R5: =SUM(#REF!) -> 
B12: =SUM(#REF!) ->  | D12: =SUM(#REF!) ->  | F12: =SUM(#REF!) ->  | H12: =SUM(#REF!) ->  | J12: =SUM(#REF!) ->  | L12: =SUM(#REF!) ->  | N12: =SUM(#REF!) ->  | O12: =SUM(#REF!) ->  | P12: =SUM(#REF!) ->  | Q12: =SUM(#REF!) -> 
B16: 2 | D16: 30 | F16: 1 | H16: 12 | J16: 2 | L16: 20 | N16: 5 | O16: 62 | P16: 2 | Q16: 25
B17: 3 | D17: 45 | F17: 2 | H17: 24 | N17: 5 | O17: 69
B18: 1 | D18: 15 | N18: 1 | O18: 15
B19: 2 | D19: 30 | N19: 2 | O19: 30 | P19: 2 | Q19: 30
F20: 1 | H20: 12 | J20: 1 | L20: 10 | N20: 2 | O20: 22 | P20: 1 | Q20: 10
J21: 1 | L21: 10 | N21: 1 | O21: 10
B22: 1 | D22: 15 | J22: 3 | L22: 30 | N22: 4 | O22: 45
J23: 1 | L23: 10 | N23: 1 | O23: 10
B24: 1 | D24: 15 | N24: 1 | O24: 15
F25: 1 | H25: 12 | N25: 1 | O25: 12
F26: 1 | H26: 12 | N26: 1 | O26: 12
J27: 1 | L27: 10 | N27: 1 | O27: 10
B28: =SUM(B16:B27) -> 10 | D28: =SUM(D16:D27) -> 150 | F28: =SUM(F16:F27) -> 6 | H28: =SUM(H16:H27) -> 72 | J28: =SUM(J16:J27) -> 9 | L28: =SUM(L16:L27) -> 90 | N28: =SUM(N16:N27) -> 25 | O28: =SUM(O16:O27) -> 312 | P28: =SUM(P16:P27) -> 5 | Q28: =SUM(Q16:Q27) -> 65
B30: 3 | D30: 45 | F30: 1 | H30: 12 | J30: 4 | L30: 40 | N30: 8 | O30: 97
F31: 2 | H31: 24 | N31: 2 | O31: 24
B32: 4 | D32: 60 | N32: 4 | O32: 60
B33: 1 | D33: 15 | N33: 1 | O33: 15
B34: 2 | D34: 30 | F34: 1 | H34: 12 | J34: 1 | L34: 10 | N34: 4 | O34: 52
J35: 1 | L35: 10 | N35: 1 | O35: 10 | P35: 1 | Q35: 10
B36: 1 | D36: 15 | F36: 4 | H36: 48 | N36: 5 | O36: 63
B37: 2 | D37: 30 | J37: 3 | L37: 30 | N37: 5 | O37: 60
F38: 1 | H38: 12 | J38: 2 | L38: 20 | N38: 3 | O38: 32 | P38: 3 | Q38: 32
F39: 2 | H39: 24 | N39: 2 | O39: 24 | P39: 2 | Q39: 24
F40: 1 | H40: 12 | J40: 1 | L40: 10 | N40: 2 | O40: 22 | P40: 2 | Q40: 22
B41: 2 | D41: 30 | N41: 2 | O41: 30
B42: 2 | D42: 30 | J42: 2 | K42: 2 | L42: 20 | N42: 4 | O42: 50
F43: 1 | H43: 12 | N43: 1 | O43: 12
J44: 1 | L44: 10 | N44: 1 | O44: 10
B45: 1 | D45: 15 | N45: 1 | O45: 15
B46: 1 | D46: 15 | N46: 1 | O46: 15
J47: 1 | L47: 10 | N47: 1 | O47: 10
B48: 1 | D48: 15 | N48: 1 | O48: 15
B49: 1 | D49: 15 | N49: 1 | O49: 15
B50: 1 | D50: 15 | N50: 1 | O50: 15
B51: 2 | D51: 30 | J51: 2 | L51: 20 | N51: 4 | O51: 50 | P51: 2 | Q51: 20
B52: 1 | D52: 15 | N52: 1 | O52: 15
J53: 1 | L53: 10 | N53: 1 | O53: 10 | P53: 1 | Q53: 10
B54: 2 | D54: 30 | N54: 2 | O54: 30
F55: 1 | H55: 12 | N55: 1 | O55: 12
B56: 7 | D56: 105 | N56: 7 | O56: 105 | P56: 3 | Q56: 45
J57: 1 | L57: 10 | N57: 1 | O57: 10
B58: 2 | D58: 30 | N58: 2 | O58: 30 | P58: 2 | Q58: 30
B59: 2 | D59: 30 | N59: 2 | O59: 30 | P59: 2 | Q59: 30
F60: 1 | H60: 12 | J60: 2 | L60: 20 | N60: 3 | O60: 32 | P60: 3 | Q60: 32
B61: 1 | D61: 15 | N61: 1 | O61: 15
B62: 2 | D62: 30 | N62: 2 | O62: 30
J63: 1 | L63: 10 | N63: 1 | O63: 10
B64: =SUM(B30:B63) -> 41 | D64: =SUM(D30:D63) -> 615 | F64: =SUM(F30:F63) -> 15 | H64: =SUM(H30:H63) -> 180 | J64: =SUM(J30:J63) -> 23 | K64: =SUM(K30:K63) -> 2 | L64: =SUM(L30:L63) -> 230 | N64: =SUM(N30:N63) -> 79 | O64: =SUM(O30:O63) -> 1025 | P64: =SUM(P30:P63) -> 21 | Q64: =SUM(Q30:Q63) -> 255
B68: =SUM(B56:B67) -> 55 | D68: =SUM(D56:D67) -> 825 | F68: =SUM(F56:F67) -> 16 | H68: =SUM(H56:H67) -> 192 | J68: =SUM(J56:J67) -> 27 | L68: =SUM(L56:L67) -> 270 | N68: =SUM(N56:N67) -> 98 | O68: =SUM(O56:O67) -> 1287 | P68: =SUM(P56:P67) -> 31 | Q68: =SUM(Q56:Q67) -> 392

Sheet Лист6
B4: =SUM(#REF!) ->  | D4: =SUM(#REF!) ->  | F4: =SUM(#REF!) ->  | H4: =SUM(#REF!) ->  | J4: =SUM(#REF!) ->  | L4: =SUM(#REF!) ->  | N4: =SUM(#REF!) ->  | O4: =SUM(#REF!) ->  | P4: =SUM(#REF!) ->  | Q4: =SUM(#REF!) -> 
D14: 10 | E14: 150 | F14: 6 | G14: 72 | H14: 9 | I14: 90 | J14: 25 | K14: 312 | L14: 5 | M14: 65
D15: 41 | E15: 615 | F15: 15 | G15: 180 | H15: 23 | I15: 230 | J15: 79 | K15: 1025 | L15: 21 | M15: 255
D16: 8 | E16: 120 | F16: 5 | G16: 60 | H16: 3 | I16: 30 | J16: 16 | K16: 210
D17: 5 | E17: 75 | F17: 3 | G17: 36 | H17: 2 | I17: 20 | J17: 10 | K17: 131
D18: 6 | E18: 90 | F18: 2 | G18: 24 | H18: 1 | I18: 10 | J18: 9 | K18: 124 | L18: 5 | M18: 70
D19: 6 | E19: 90 | F19: 6 | G19: 72 | H19: 7 | I19: 70 | J19: 19 | K19: 232 | L19: 4 | M19: 45
D20: =SUM(D14:D19) -> 76 | E20: 1140 | F20: 37 | G20: 444 | H20: 45 | I20: 450 | J20: 158 | K20: 2034 | L20: 35 | M20: 435
D23: 10 | E23: 150 | F23: 40 | H23: 6 | I23: 72 | J23: 36 | L23: 9 | M23: 90 | N23: 54 | P23: 25 | Q23: 312 | R23: 130 | T23: 5 | U23: 65
D24: 41 | E24: 615 | F24: 164 | H24: 15 | I24: 180 | J24: 90 | L24: 23 | M24: 230 | N24: 138 | P24: 79 | Q24: 1025 | R24: 392 | S24: 70 | T24: 21 | U24: 255
D25: 8 | E25: 120 | F25: 32 | H25: 5 | I25: 60 | J25: 30 | L25: 3 | M25: 30 | N25: 18 | P25: 16 | Q25: 210 | R25: 80
D26: 5 | E26: 75 | F26: 20 | H26: 3 | I26: 36 | J26: 18 | L26: 2 | M26: 20 | N26: 12 | P26: 10 | Q26: 131 | R26: 50
D27: 6 | E27: 90 | F27: 24 | H27: 2 | I27: 24 | J27: 12 | L27: 1 | M27: 10 | N27: 6 | P27: 9 | Q27: 124 | R27: 42 | T27: 5 | U27: 70
D28: 6 | E28: 90 | F28: 24 | H28: 6 | I28: 72 | J28: 36 | L28: 7 | M28: 70 | N28: 42 | P28: 19 | Q28: 232 | R28: 102 | S28: 18 | T28: 4 | U28: 45
D29: =SUM(D23:D28) -> 76 | E29: =SUM(E23:E28) -> 1140 | F29: =SUM(F23:F28) -> 304 | H29: =SUM(H23:H28) -> 37 | I29: =SUM(I23:I28) -> 444 | J29: =SUM(J23:J28) -> 222 | L29: =SUM(L23:L28) -> 45 | M29: =SUM(M23:M28) -> 450 | N29: =SUM(N23:N28) -> 270 | P29: =SUM(P23:P28) -> 158 | Q29: 2034 | R29: 796 | S29: 88 | T29: 35 | U29: 435

Sheet Комплектование
A1: КОМПЛЕКТОВАНИЕ ГРУПП МУНИЦИПАЛЬНОГО БЮДЖЕТНОГО УЧРЕЖДЕНИЯ ДОПОЛНИТЕЛЬНОГО ОБРАЗОВАНИЯ «ДВОРЕЦ ТВОРЧЕСТВА ДЕТЕЙ И МОЛОДЕЖИ имени И.Х.САДЫКОВА» НИЖНЕКАМСКОГО МУНИЦИПАЛЬНОГО РАЙОНА РЕСПУБЛИКИ ТАТАРСТАН НА 1 СЕНТЯБРЯ 2025 ГОДА
A3: № п/п | B3: Направленность. Вид, наименование общеразвивающей программы, возраст учащихся, срок реализации | C3: Комплектование Количество групп, учащихся | Q3: Из них занимаются в ДТДиМ
C5: 1 года обучения. Количество | G5: 2 года обучения. Количество | K5: 3 и более год обучения. Количество | O5: Всего. Количество
C7: группа | E7: учащиеся | G7: группа | I7: учащиеся | K7: группа | M7: учащиеся | O7: группа | P7: учащиеся | Q7: группа | R7: учащиеся
B8: Техническая направленность
A9: 1 | B9: Авторская, «Начальное техническое моделирование с элементами компьютерной графики», 7-10 лет , 4 года | C9: 2 | E9: 30 | G9: 1 | I9: 12 | K9: 2 | M9: 20 | O9: 5 | P9: 62 | Q9: 2 | R9: 20
A10: 2 | B10: Модифицированная, «Начальное техническое моделирование», 7-12 лет, 4 года | C10: 3 | E10: 45 | G10: 2 | I10: 24 | O10: 5 | P10: 69
A11: 3 | B11: Модифицированная, «Основы робототехники», 10-16 лет, 2 года | C11: 1 | E11: 15 | O11: 1 | P11: 15
A12: 4 | B12: Модифицированная, "Мастерская идей", 7-11 лет, 4 года | G12: 1 | I12: 12 | K12: 1 | M12: 10 | O12: 2 | P12: 22 | Q12: 1 | R12: 10
A13: 5 | B13: Модифицированная, "Увлекательное моделирование", 7-11 лет, 4 года | K13: 1 | M13: 10 | O13: 1 | P13: 10
A14: 6 | B14: Модифицированная, "Анимационная студия "Детство", 7-12 лет, 4 года | C14: 1 | E14: 15 | K14: 3 | M14: 30 | O14: 4 | P14: 45
A15: 7 | B15: Модифицированная, "Самоделкины", 7-12 лет, 4 года | K15: 1 | M15: 10 | O15: 1 | P15: 10
A16: 8 | B16: Модифицированная, "3D - моделирование", 10- 16 лет, 1 год | C16: 3 | E16: 45 | O16: 3 | P16: 45
A17: 9 | B17: Модифицированная, "Мастеринка", 7-10 лет, 2 года | G17: 1 | I17: 12 | O17: 1 | P17: 12
A18: 10 | B18: Модифицированная, "Электроник", 7-9 лет, 2 года | G18: 1 | I18: 12 | O18: 1 | P18: 12
A19: 11 | B19: Модифицированная, "Умелые ручки", 7-12 лет, 4 года | K19: 1 | M19: 10 | O19: 1 | P19: 10
B20: ИТОГО: | C20: =SUM(C9:C19) -> 10 | E20: =SUM(E9:E19) -> 150 | G20: =SUM(G9:G19) -> 6 | I20: =SUM(I9:I19) -> 72 | K20: =SUM(K9:K19) -> 9 | M20: =SUM(M9:M19) -> 90 | O20: =SUM(O9:O19) -> 25 | P20: =SUM(P9:P19) -> 312 | Q20: =SUM(Q9:Q19) -> 3 | R20: 30
B21: Художественная направленность
A22: 12 | B22: Авторская, «Курай», 7-13 лет, 4 года | C22: 2 | E22: 30 | G22: 1 | I22: 12 | K22: 4 | M22: 40 | O22: 7 | P22: 82
A23: 13 | B23: Модифицированная, «Тел күрке - сүз», 11-15 лет, 3 года | G23: 2 | I23: 24 | O23: 2 | P23: 24
A24: 14 | B24: Модифицированная, «Күңелле сәхнә», 11-15 лет, 3 года | C24: 4 | E24: 60 | O24: 4 | P24: 60
A25: 15 | B25: Модифицированная, «Сәнгатьле сүз», 10-14 лет, 1 год | C25: 1 | E25: 15 | O25: 1 | P25: 15
A26: 16 | B26: Модифицированная, «Таван театр», 9-11 лет, 1 год | C26: 1 | E26: 15 | O26: 1 | P26: 15
A27: 17 | B27: Модифицированная «Народно-сценические танцы», 7-13 лет, 5 лет | C27: 2 | E27: 30 | G27: 1 | I27: 12 | K27: 1 | M27: 10 | O27: 4 | P27: 52
A28: 18 | B28: Адаптированная, «Лепка», 7-14 лет, 4 года | K28: 1 | M28: 10 | O28: 1 | P28: 10 | Q28: 1 | R28: 10
A29: 19 | B29: Модифицированная, «Художники», 7-11 лет,4 года | C29: 1 | E29: 15 | G29: 4 | I29: 48 | O29: 5 | P29: 63
A30: 20 | B30: Модифицированная, «Веселая кисточка», 7-12 лет, 3 года | C30: 2 | E30: 30 | K30: 3 | M30: 30 | O30: 5 | P30: 60
A31: 21 | B31: Модифицированная, «ИЗО», 8-14 лет, 3 года | G31: 1 | I31: 12 | K31: 2 | M31: 20 | O31: 3 | P31: 32 | Q31: 3 | R31: 32
A32: 22 | B32: Авторская, «Основы дизайна», 7-13 лет, 4 года | G32: 2 | I32: 24 | O32: 2 | P32: 24 | Q32: 2 | R32: 24
A33: 23 | B33: Авторская, «Бисероплетение», 7-15 лет, 3 года | G33: 1 | I33: 12 | K33: 1 | M33: 10 | O33: 2 | P33: 22 | Q33: 2 | R33: 22
A34: 24 | B34: Авторская, «Цветоделие», 7-15 лет, 3 года | C34: 2 | E34: 30 | O34: 2 | P34: 30
A35: 25 | B35: Модифицированная, «Юный дизайнер», 7-14 лет,4 года | C35: 2 | E35: 30 | K35: 2 | L35: 2 | M35: 20 | O35: 4 | P35: 50
A36: 26 | B36: Авторская, «Волшебная кисточка», 7-15 лет, 3 года | G36: 1 | I36: 12 | O36: 1 | P36: 12
A37: 27 | B37: Модифицированная, «Калейдоскоп фантазий», 10-15 лет, 3 года | K37: 1 | M37: 10 | O37: 1 | P37: 10
A38: 28 | B38: Модифицированная, «Art-студия», 7-14 лет,4 года | C38: 1 | E38: 15 | O38: 1 | P38: 15
A39: 29 | B39: Модифицированная, «Кудесники», 7-10 лет, 2 года | C39: 1 | E39: 15 | O39: 1 | P39: 15
A40: 30 | B40: Модифицированная, «Волшебная мастерская», 7-11 лет, 4 года | K40: 1 | M40: 10 | O40: 1 | P40: 10
A41: 31 | B41: Модифицированная, «Разноцветная палитра», 7-11 лет, 1 год | C41: 1 | E41: 15 | O41: 1 | P41: 15
A42: 32 | B42: Модифицированная, «Юные да Винчи», 7-10 лет, 1 год | C42: 1 | E42: 15 | O42: 1 | P42: 15
A43: 33 | B43: Модифицированная, "Вокал «Радуга», 7-10 лет, 2 года | C43: 1 | E43: 15 | O43: 1 | P43: 15
A44: 34 | B44: Модифицированная «Хореография.Грация», 5-14 лет, 4года | C44: 2 | E44: 30 | K44: 2 | M44: 20 | O44: 4 | P44: 50 | Q44: 2 | R44: 20
A45: 35 | B45: Модифицированная, "Веселая сцена" 10-13 лет, 3 года | C45: 1 | E45: 15 | O45: 1 | P45: 15
A46: 36 | B46: Модифицированная, «Литературно драматическое», 7-15 лет, 4 года | C46: 1 | E46: 15 | K46: 1 | M46: 10 | O46: 2 | P46: 25 | Q46: 2 | R46: 25
A47: 37 | B47: Модифицированная, «РФА «Забавята», 7-11 лет, 3 год | C47: 2 | E47: 30 | O47: 2 | P47: 30
A48: 38 | B48: Модифицированная, «РФА», 7-11 лет, 4 года | G48: 1 | I48: 12 | O48: 1 | P48: 12
A49: 39 | B49: Модифицированная, «Вокал "Веселые нотки», 7-16 лет, 2 года | C49: 1 | E49: 15 | O49: 1 | P49: 15
A50: 40 | B50: Модифицированная, «Вокал»,7-16 лет, 2 года | C50: 5 | E50: 75 | O50: 5 | P50: 75 | Q50: 3 | R50: 45
A51: 41 | B51: Модифицированная, «Вокал." Каприз», 7-16 лет, 3 года | K51: 1 | M51: 10 | O51: 1 | P51: 10
A52: 42 | B52: Модифицированная «Хореография. Брависсимо», 7-16 лет, 7 лет | C52: 2 | E52: 30 | O52: 2 | P52: 30 | Q52: 2 | R52: 30
A53: 43 | B53: Модифицированная «Ascension», 14-18 лет,3 года | C53: 2 | E53: 30 | O53: 2 | P53: 30 | Q53: 2 | R53: 30
A54: 44 | B54: Модифицированная, «Вокал. Карамельки», 7-15 лет, 4года | G54: 1 | I54: 12 | K54: 2 | M54: 20 | O54: 3 | P54: 32 | Q54: 3 | R54: 32
A55: 45 | B55: Модифицированная, "Художественное слово" 8-13 лет ,2 года | C55: 1 | E55: 15 | O55: 1 | P55: 15
A56: 46 | B56: Модифицированная «Театральная студия "Браво», 10-14 лет, 1 год | C56: 2 | E56: 30 | O56: 2 | P56: 30
A57: 47 | B57: Модифицированная «Театральная студия "Тарарабумбия», 10-15 лет, 1 год | C57: 1 | E57: 15 | O57: 1 | P57: 15
A58: 48 | B58: Модифицированная «Театральная студия "Настроение», 7-12 лет, 4 года | K58: 1 | M58: 10 | O58: 1 | P58: 10
B59: ИТОГО: | C59: =SUM(C22:C58) -> 42 | E59: =SUM(E22:E58) -> 630 | G59: =SUM(G22:G58) -> 15 | I59: =SUM(I22:I58) -> 180 | K59: =SUM(K22:K58) -> 23 | M59: =SUM(M22:M58) -> 230 | O59: =SUM(O22:O58) -> 80 | P59: =SUM(P22:P58) -> 1040 | Q59: =SUM(Q28:Q58) -> 22 | R59: =SUM(R28:R58) -> 270
B60: Туристско-краеведческая направленность
A61: 49 | B61: Авторская, «Туган як табигатен өйрәнү», 7-12 лет, 3 года | C61: 1 | E61: 15 | G61: 2 | I61: 24 | K61: 2 | M61: 20 | O61: 5 | P61: 59
A62: 50 | B62: Авторская, «Краеведение», 7-10 лет, 3 года | G62: 1 | I62: 12 | O62: 1 | P62: 12
A63: 51 | B63: Модифицированная «Туган як тарихын һәм мәдәниятен өйрәнү» 7-11 лет, 4 года | C63: 2 | E63: 30 | O63: 2 | P63: 30
A64: 52 | B64: Модифицированная, «Изучение истории и культуры русского народа», 10-13 лет, 3 года | K64: 1 | M64: 10 | O64: 1 | P64: 10
A65: 53 | B65: Модифицированная «Юный стрелок» 11-16 лет, 2 года | C65: 2 | E65: 30 | O65: 2 | P65: 30
A66: 54 | B66: Модифицированная «Орнамент в народном творчестве», 7-11 лет,2года | C66: 3 | E66: 45 | G66: 2 | I66: 24 | O66: 5 | P66: 69
B67: ИТОГО: | C67: =SUM(C61:C66) -> 8 | E67: =SUM(E61:E66) -> 120 | G67: =SUM(G61:G66) -> 5 | I67: =SUM(I61:I66) -> 60 | K67: =SUM(K61:K66) -> 3 | M67: =SUM(M61:M66) -> 30 | O67: =SUM(O61:O66) -> 16 | P67: =SUM(P61:P66) -> 210
B68: Естественнонаучная направленность
A69: 55 | B69: Модифицированная, «Географическое творчество», 10-16 лет, 1 год | C69: 2 | E69: 30 | O69: 2 | P69: 30
A70: 56 | B70: Модифицированная, «Занимательная география», 10-16 лет, 1 год | C70: 1 | E70: 15 | O70: 1 | P70: 15
A71: 57 | B71: Модифицированная, «Яшь эзләнүчеләр», 12-16 лет, 3 года | K71: 1 | M71: 10 | O71: 1 | P71: 10
A72: 58 | B72: Модифицированная, «Школа Кота да Винчи», 11-13 лет, 2 года | G72: 1 | I72: 12 | O72: 1 | P72: 12
A73: 59 | B73: Модифицированная, «Уйла, эзлә,тап», 12-16 лет, 1 год | C73: 1 | E73: 15 | O73: 1 | P73: 15
A74: 60 | B74: Модифицированная, «Юные экологи», 14-15 лет, 1 год | C74: 1 | E74: 15 | O74: 1 | P74: 15
A75: 61 | B75: Авторская, «Веселый английский», 7-10 лет, 3 года | G75: 2 | I75: 24 | K75: 1 | M75: 10 | O75: 3 | P75: 34
B76: ИТОГО: | C76: =SUM(C69:C75) -> 5 | E76: =SUM(E69:E75) -> 75 | G76: =SUM(G69:G75) -> 3 | I76: =SUM(I69:I75) -> 36 | K76: 2 | M76: 20 | O76: =SUM(O69:O75) -> 10 | P76: =SUM(P69:P75) -> 131
B77: Социально- гуманитарная направленность
A78: 62 | B78: Модифицированная, «Инициатива», 14-17 лет, 1 год | C78: 1 | E78: 15 | O78: 1 | P78: 15 | Q78: 1 | R78: 15
A79: 63 | B79: Авторская, «Школа инициативы», 14-17 лет, 3 года | C79: 1 | E79: 15 | O79: 1 | P79: 15 | Q79: 1 | R79: 15
A80: 64 | B80: Адаптированная, «Шаг вперед», 10-15 лет, 1 год | C80: 1 | E80: 15 | O80: 1 | P80: 15 | Q80: 1 | R80: 15
A81: 65 | B81: Авторская, «Учеба профилактических волонтеров», 13-16 лет, 3 года | C81: 1 | E81: 15 | K81: 1 | M81: 10 | O81: 2 | P81: 25 | Q81: 2 | R81: 25
A82: 66 | B82: Модифицированная, "Прочитай-ка", 7-11 лет, 1 год | C82: 1 | E82: 15 | O82: 1 | P82: 15
A83: 67 | B83: Модифицированная, "Палитра эмоций" 12-16 лет, 1 год | C83: 1 | E83: 15 | O83: 1 | P83: 15
A84: 68 | B84: Модифицированная, «Мирас» 15-17 лет, 2 года | G84: 2 | I84: 24 | O84: 2 | P84: 24
B85: ИТОГО: | C85: =SUM(C78:C84) -> 6 | E85: =SUM(E78:E84) -> 90 | G85: =SUM(G79:G84) -> 2 | I85: =SUM(I79:I84) -> 24 | K85: =SUM(K79:K84) -> 1 | M85: =SUM(M79:M84) -> 10 | O85: =SUM(O78:O84) -> 9 | P85: =SUM(P78:P84) -> 124 | Q85: =SUM(Q78:Q84) -> 5 | R85: =SUM(R78:R84) -> 70
B86: Физкультурно-спортивная направленность
A87: 69 | B87: Авторская, «Спортивные бальные танцы», 7-17 лет, 6 лет | C87: 1 | E87: 15 | K87: 3 | M87: 30 | O87: 4 | P87: 45 | Q87: 4 | R87: 45
A88: 70 | B88: Типовая, «Шахматы», 8-14 лет, 3 года | C88: 6 | E88: 90 | G88: 6 | I88: 72 | K88: 4 | M88: 40 | O88: 15 | P88: 202
B89: ИТОГО: | C89: 7 | E89: 105 | G89: =SUM(G87:G88) -> 6 | I89: =SUM(I87:I88) -> 72 | K89: =SUM(K87:K88) -> 7 | M89: =SUM(M87:M88) -> 70 | O89: 20 | P89: 247 | Q89: 4 | R89: 45
B90: ИТОГО ПО ВСЕМ НАПРАВЛЕННОСТЯМ: | C90: 78 | E90: 1170 | G90: 37 | I90: 444 | K90: 45 | M90: 450 | O90: 160 | P90: 2064 | Q90: 34 | R90: 415
B93: Директор | N93: Р.Н. Салихзянов
B95: Директор МБУ «Центр образования» НМР РТ Р.И.Джалолова
B97: Заместитель главного бухгалтера ЦБ Л.М. Шакирова
